Workbook

Sheet ТЗ
A3: 1 | B3: Дата запуска: | H3: 2 | I3: Дата запуска:
A4: Марка сплава | B4: =IFERROR(VLOOKUP(Скелет!A1,Скелет!B1:C51,2,FALSE),0) -> 7 | D4: =IFERROR(VLOOKUP(B$4,IF(Рецептуры!$B$2:$B$151=B$5,Рецептуры!$A$2:$T$151,"OOPS"),18,0),"0") -> 0 | H4: Марка сплава | I4: =IFERROR(VLOOKUP(Скелет!A3,Скелет!B1:C51,2,FALSE),0) -> - | K4: =IFERROR(VLOOKUP(I$4,IF(Рецептуры!$B$2:$B$151=I$5,Рецептуры!$A$2:$T$151,"OOPS"),18,0),"0") -> 0
A5: Мельница | B5: =IFERROR(VLOOKUP(Скелет!E1,Скелет!F1:G7,2,FALSE),0) -> номер 100-2 | H5: Мельница | I5: =IFERROR(VLOOKUP(Скелет!E3,Скелет!F1:G7,2,FALSE),0) -> -
A6: Компонент | B6: Комментарий | C6: Масса, кг | D6: =SUM(C7:C15) -> 0 | H6: Компонент | I6: Комментарий | J6: Масса, кг | K6: =SUM(J7:J15) -> 0
A7: =IFERROR(VLOOKUP(B$4,Рецептуры!$A$154:$S$204,2,FALSE),"-") -> - | B7: =IFERROR(VLOOKUP(B$4,Рецептуры!$A$208:$E$257,2,FALSE),"-") -> - | C7: =IFERROR(VLOOKUP(B$4,IF(Рецептуры!$B$2:$B$151=B$5,Рецептуры!$A$2:$T$151,"OOPS"),3,0),"-") -> - | H7: =IFERROR(VLOOKUP(I$4,Рецептуры!$A$154:$S$204,2,FALSE),"-") -> - | I7: =IFERROR(VLOOKUP(I$4,Рецептуры!$A$208:$E$257,2,FALSE),"-") -> - | J7: =IFERROR(VLOOKUP(I$4,IF(Рецептуры!$B$2:$B$151=I$5,Рецептуры!$A$2:$T$151,"OOPS"),3,0),"-") -> -
A8: =IFERROR(VLOOKUP(B$4,Рецептуры!$A$154:$S$204,3,FALSE),"-") -> - | B8: =IFERROR(VLOOKUP(B$4,Рецептуры!$A$208:$E$257,3,FALSE),"-") -> - | C8: =IFERROR(VLOOKUP(B$4,IF(Рецептуры!$B$2:$B$151=B$5,Рецептуры!$A$2:$T$151,"OOPS"),4,0),"-") -> - | D8: =SUM(C7:C17) -> 0 | H8: =IFERROR(VLOOKUP(I$4,Рецептуры!$A$154:$S$204,3,FALSE),"-") -> - | I8: =IFERROR(VLOOKUP(I$4,Рецептуры!$A$208:$E$257,3,FALSE),"-") -> - | J8: =IFERROR(VLOOKUP(I$4,IF(Рецептуры!$B$2:$B$151=I$5,Рецептуры!$A$2:$T$151,"OOPS"),4,0),"-") -> - | K8: =SUM(J7:J17) -> 0
A9: =IFERROR(VLOOKUP(B$4,Рецептуры!$A$154:$S$204,4,FALSE),"-") -> - | B9: =IFERROR(VLOOKUP(B$4,Рецептуры!$A$208:$E$257,4,FALSE),"-") -> - | C9: =IFERROR(VLOOKUP(B$4,IF(Рецептуры!$B$2:$B$151=B$5,Рецептуры!$A$2:$T$151,"OOPS"),5,0),"-") -> - | H9: =IFERROR(VLOOKUP(I$4,Рецептуры!$A$154:$S$204,4,FALSE),"-") -> - | I9: =IFERROR(VLOOKUP(I$4,Рецептуры!$A$208:$E$257,4,FALSE),"-") -> - | J9: =IFERROR(VLOOKUP(I$4,IF(Рецептуры!$B$2:$B$151=I$5,Рецептуры!$A$2:$T$151,"OOPS"),5,0),"-") -> -
A10: =IFERROR(VLOOKUP(B$4,Рецептуры!$A$154:$S$204,5,FALSE),"-") -> - | C10: =IFERROR(VLOOKUP(B$4,IF(Рецептуры!$B$2:$B$151=B$5,Рецептуры!$A$2:$T$151,"OOPS"),6,0),"-") -> - | D10: =SUM(C7:C19) -> 0 | H10: =IFERROR(VLOOKUP(I$4,Рецептуры!$A$154:$S$204,5,FALSE),"-") -> - | J10: =IFERROR(VLOOKUP(I$4,IF(Рецептуры!$B$2:$B$151=I$5,Рецептуры!$A$2:$T$151,"OOPS"),6,0),"-") -> - | K10: =SUM(J7:J19) -> 0
A11: =IFERROR(VLOOKUP(B$4,Рецептуры!$A$154:$S$204,6,FALSE),"-") -> - | C11: =IFERROR(VLOOKUP(B$4,IF(Рецептуры!$B$2:$B$151=B$5,Рецептуры!$A$2:$T$151,"OOPS"),7,0),"-") -> - | H11: =IFERROR(VLOOKUP(I$4,Рецептуры!$A$154:$S$204,6,FALSE),"-") -> - | J11: =IFERROR(VLOOKUP(I$4,IF(Рецептуры!$B$2:$B$151=I$5,Рецептуры!$A$2:$T$151,"OOPS"),7,0),"-") -> -
A12: =IFERROR(VLOOKUP(B$4,Рецептуры!$A$154:$S$204,7,FALSE),"-") -> - | C12: =IFERROR(VLOOKUP(B$4,IF(Рецептуры!$B$2:$B$151=B$5,Рецептуры!$A$2:$T$151,"OOPS"),8,0),"-") -> - | D12: =SUM(C7:C19)+C21*D4 -> 0 | H12: =IFERROR(VLOOKUP(I$4,Рецептуры!$A$154:$S$204,7,FALSE),"-") -> - | J12: =IFERROR(VLOOKUP(I$4,IF(Рецептуры!$B$2:$B$151=I$5,Рецептуры!$A$2:$T$151,"OOPS"),8,0),"-") -> - | K12: =SUM(J7:J19)+J21*K4 -> 0
A13: =IFERROR(VLOOKUP(B$4,Рецептуры!$A$154:$S$204,8,FALSE),"-") -> - | C13: =IFERROR(VLOOKUP(B$4,IF(Рецептуры!$B$2:$B$151=B$5,Рецептуры!$A$2:$T$151,"OOPS"),9,0),"-") -> - | D13: Комментарий | H13: =IFERROR(VLOOKUP(I$4,Рецептуры!$A$154:$S$204,8,FALSE),"-") -> - | J13: =IFERROR(VLOOKUP(I$4,IF(Рецептуры!$B$2:$B$151=I$5,Рецептуры!$A$2:$T$151,"OOPS"),9,0),"-") -> - | K13: Комментарий
A14: =IFERROR(VLOOKUP(B$4,Рецептуры!$A$154:$S$204,9,FALSE),"-") -> - | C14: =IFERROR(VLOOKUP(B$4,IF(Рецептуры!$B$2:$B$151=B$5,Рецептуры!$A$2:$T$151,"OOPS"),10,0),"-") -> - | D14: =IFERROR(VLOOKUP(B$4,Рецептуры!$A$208:$G$257,7,FALSE),"-") -> - | H14: =IFERROR(VLOOKUP(I$4,Рецептуры!$A$154:$S$204,9,FALSE),"-") -> - | J14: =IFERROR(VLOOKUP(I$4,IF(Рецептуры!$B$2:$B$151=I$5,Рецептуры!$A$2:$T$151,"OOPS"),10,0),"-") -> - | K14: =IFERROR(VLOOKUP(I$4,Рецептуры!$A$208:$G$257,7,FALSE),"-") -> -
A15: =IFERROR(VLOOKUP(B$4,Рецептуры!$A$154:$S$204,13,FALSE),"-") -> - | B15: =IFERROR(VLOOKUP(B$4,Рецептуры!$A$208:$F$257,6,FALSE),"-") -> - | C15: =IFERROR(VLOOKUP(B$4,IF(Рецептуры!$B$2:$B$151=B$5,Рецептуры!$A$2:$T$151,"OOPS"),11,0),"-") -> - | H15: =IFERROR(VLOOKUP(I$4,Рецептуры!$A$154:$S$204,13,FALSE),"-") -> - | I15: =IFERROR(VLOOKUP(I$4,Рецептуры!$A$208:$F$257,6,FALSE),"-") -> - | J15: =IFERROR(VLOOKUP(I$4,IF(Рецептуры!$B$2:$B$151=I$5,Рецептуры!$A$2:$T$151,"OOPS"),11,0),"-") -> -
A16: =IFERROR(VLOOKUP(B$4,Рецептуры!$A$154:$S$204,10,FALSE),"-") -> - | C16: =IFERROR(VLOOKUP(B$4,IF(Рецептуры!$B$2:$B$151=B$5,Рецептуры!$A$2:$T$151,"OOPS"),12,0),"-") -> - | H16: =IFERROR(VLOOKUP(I$4,Рецептуры!$A$154:$S$204,10,FALSE),"-") -> - | J16: =IFERROR(VLOOKUP(I$4,IF(Рецептуры!$B$2:$B$151=I$5,Рецептуры!$A$2:$T$151,"OOPS"),12,0),"-") -> -
A17: =IFERROR(VLOOKUP(B$4,Рецептуры!$A$154:$S$204,14,FALSE),"-") -> - | C17: =IFERROR(VLOOKUP(B$4,IF(Рецептуры!$B$2:$B$151=B$5,Рецептуры!$A$2:$T$151,"OOPS"),13,0),"-") -> - | H17: =IFERROR(VLOOKUP(I$4,Рецептуры!$A$154:$S$204,14,FALSE),"-") -> - | J17: =IFERROR(VLOOKUP(I$4,IF(Рецептуры!$B$2:$B$151=I$5,Рецептуры!$A$2:$T$151,"OOPS"),13,0),"-") -> -
A18: =IFERROR(VLOOKUP(B$4,Рецептуры!$A$154:$S$204,11,FALSE),"oops") -> oops | C18: =IFERROR(VLOOKUP(B$4,IF(Рецептуры!$B$2:$B$151=B$5,Рецептуры!$A$2:$T$151,"OOPS"),14,0),"-") -> - | H18: =IFERROR(VLOOKUP(I$4,Рецептуры!$A$154:$S$204,11,FALSE),"oops") -> oops | J18: =IFERROR(VLOOKUP(I$4,IF(Рецептуры!$B$2:$B$151=I$5,Рецептуры!$A$2:$T$151,"OOPS"),14,0),"-") -> -
A19: =IFERROR(VLOOKUP(B$4,Рецептуры!$A$154:$S$204,12,FALSE),"oops") -> oops | C19: =IFERROR(VLOOKUP(B$4,IF(Рецептуры!$B$2:$B$151=B$5,Рецептуры!$A$2:$T$151,"OOPS"),15,0),"-") -> - | H19: =IFERROR(VLOOKUP(I$4,Рецептуры!$A$154:$S$204,12,FALSE),"oops") -> oops | J19: =IFERROR(VLOOKUP(I$4,IF(Рецептуры!$B$2:$B$151=I$5,Рецептуры!$A$2:$T$151,"OOPS"),15,0),"-") -> -
A20: Мелющие тела | B20: =IFERROR(VLOOKUP(B$4,Рецептуры!$A$208:$E$257,5,FALSE),"-") -> - | C20: =IFERROR(VLOOKUP(B$4,IF(Рецептуры!$B$2:$B$151=B$5,Рецептуры!$A$2:$T$151,"OOPS"),16,0),"-") -> - | H20: Мелющие тела | I20: =IFERROR(VLOOKUP(I$4,Рецептуры!$A$208:$E$257,5,FALSE),"-") -> - | J20: =IFERROR(VLOOKUP(I$4,IF(Рецептуры!$B$2:$B$151=I$5,Рецептуры!$A$2:$T$151,"OOPS"),16,0),"-") -> -
A21: Время помола, ч | C21: =IFERROR(VLOOKUP(B$4,IF(Рецептуры!$B$2:$B$151=B$5,Рецептуры!$A$2:$T$151,"OOPS"),17,0),"0") -> 0 | H21: Время помола, ч | J21: =IFERROR(VLOOKUP(I$4,IF(Рецептуры!$B$2:$B$151=I$5,Рецептуры!$A$2:$T$151,"OOPS"),17,0),"0") -> 0
A24: 3 | B24: Дата запуска: | H24: 4 | I24: Дата запуска:
A25: Марка сплава | B25: =IFERROR(VLOOKUP(Скелет!A2,Скелет!B1:C51,2,FALSE),0) -> - | D25: =IFERROR(VLOOKUP(B$25,IF(Рецептуры!$B$2:$B$151=B$26,Рецептуры!$A$2:$T$151,"OOPS"),18,0),"0") -> 0 | H25: Марка сплава | I25: =IFERROR(VLOOKUP(Скелет!A4,Скелет!B1:C51,2,FALSE),0) -> - | K25: =IFERROR(VLOOKUP(I$25,IF(Рецептуры!$B$2:$B$151=I$26,Рецептуры!$A$2:$T$151,"OOPS"),18,0),"0") -> 0
A26: Мельница | B26: =IFERROR(VLOOKUP(Скелет!E2,Скелет!F1:G7,2,FALSE),0) -> - | H26: Мельница | I26: =IFERROR(VLOOKUP(Скелет!E4,Скелет!F1:G7,2,FALSE),0) -> -
A27: Компонент | B27: Комментарий | C27: Масса, кг | D27: =SUM(C28:C36) -> 0 | H27: Компонент | I27: Комментарий | J27: Масса, кг | K27: =SUM(J28:J36) -> 0
A28: =IFERROR(VLOOKUP(B$25,Рецептуры!$A$154:$S$204,2,FALSE),"-") -> - | B28: =IFERROR(VLOOKUP(B$25,Рецептуры!$A$208:$E$257,2,FALSE),"-") -> - | C28: =IFERROR(VLOOKUP(B$25,IF(Рецептуры!$B$2:$B$151=B$26,Рецептуры!$A$2:$T$151,"OOPS"),3,0),"-") -> - | H28: =IFERROR(VLOOKUP(I$25,Рецептуры!$A$154:$S$204,2,FALSE),"-") -> - | I28: =IFERROR(VLOOKUP(I$25,Рецептуры!$A$208:$E$257,2,FALSE),"-") -> - | J28: =IFERROR(VLOOKUP(I$25,IF(Рецептуры!$B$2:$B$151=I$26,Рецептуры!$A$2:$T$151,"OOPS"),3,0),"-") -> -
A29: =IFERROR(VLOOKUP(B$25,Рецептуры!$A$154:$S$204,3,FALSE),"-") -> - | B29: =IFERROR(VLOOKUP(B$25,Рецептуры!$A$208:$E$257,3,FALSE),"-") -> - | C29: =IFERROR(VLOOKUP(B$25,IF(Рецептуры!$B$2:$B$151=B$26,Рецептуры!$A$2:$T$151,"OOPS"),4,0),"-") -> - | D29: =SUM(C28:C38) -> 0 | H29: =IFERROR(VLOOKUP(I$25,Рецептуры!$A$154:$S$204,3,FALSE),"-") -> - | I29: =IFERROR(VLOOKUP(I$25,Рецептуры!$A$208:$E$257,3,FALSE),"-") -> - | J29: =IFERROR(VLOOKUP(I$25,IF(Рецептуры!$B$2:$B$151=I$26,Рецептуры!$A$2:$T$151,"OOPS"),4,0),"-") -> - | K29: =SUM(J28:J38) -> 0
A30: =IFERROR(VLOOKUP(B$25,Рецептуры!$A$154:$S$204,4,FALSE),"-") -> - | B30: =IFERROR(VLOOKUP(B$25,Рецептуры!$A$208:$E$257,4,FALSE),"-") -> - | C30: =IFERROR(VLOOKUP(B$25,IF(Рецептуры!$B$2:$B$151=B$26,Рецептуры!$A$2:$T$151,"OOPS"),5,0),"-") -> - | H30: =IFERROR(VLOOKUP(I$25,Рецептуры!$A$154:$S$204,4,FALSE),"-") -> - | I30: =IFERROR(VLOOKUP(I$25,Рецептуры!$A$208:$E$257,4,FALSE),"-") -> - | J30: =IFERROR(VLOOKUP(I$25,IF(Рецептуры!$B$2:$B$151=I$26,Рецептуры!$A$2:$T$151,"OOPS"),5,0),"-") -> -
A31: =IFERROR(VLOOKUP(B$25,Рецептуры!$A$154:$S$204,5,FALSE),"-") -> - | C31: =IFERROR(VLOOKUP(B$25,IF(Рецептуры!$B$2:$B$151=B$26,Рецептуры!$A$2:$T$151,"OOPS"),6,0),"-") -> - | D31: =SUM(C28:C40) -> 0 | H31: =IFERROR(VLOOKUP(I$25,Рецептуры!$A$154:$S$204,5,FALSE),"-") -> - | J31: =IFERROR(VLOOKUP(I$25,IF(Рецептуры!$B$2:$B$151=I$26,Рецептуры!$A$2:$T$151,"OOPS"),6,0),"-") -> - | K31: =SUM(J28:J40) -> 0
A32: =IFERROR(VLOOKUP(B$25,Рецептуры!$A$154:$S$204,6,FALSE),"-") -> - | C32: =IFERROR(VLOOKUP(B$25,IF(Рецептуры!$B$2:$B$151=B$26,Рецептуры!$A$2:$T$151,"OOPS"),7,0),"-") -> - | H32: =IFERROR(VLOOKUP(I$25,Рецептуры!$A$154:$S$204,6,FALSE),"-") -> - | J32: =IFERROR(VLOOKUP(I$25,IF(Рецептуры!$B$2:$B$151=I$26,Рецептуры!$A$2:$T$151,"OOPS"),7,0),"-") -> -
A33: =IFERROR(VLOOKUP(B$25,Рецептуры!$A$154:$S$204,7,FALSE),"-") -> - | C33: =IFERROR(VLOOKUP(B$25,IF(Рецептуры!$B$2:$B$151=B$26,Рецептуры!$A$2:$T$151,"OOPS"),8,0),"-") -> - | D33: =SUM(C28:C40)+C42*D25 -> 0 | H33: =IFERROR(VLOOKUP(I$25,Рецептуры!$A$154:$S$204,7,FALSE),"-") -> - | J33: =IFERROR(VLOOKUP(I$25,IF(Рецептуры!$B$2:$B$151=I$26,Рецептуры!$A$2:$T$151,"OOPS"),8,0),"-") -> - | K33: =SUM(J28:J40)+J42*K25 -> 0
A34: =IFERROR(VLOOKUP(B$25,Рецептуры!$A$154:$S$204,8,FALSE),"-") -> - | C34: =IFERROR(VLOOKUP(B$25,IF(Рецептуры!$B$2:$B$151=B$26,Рецептуры!$A$2:$T$151,"OOPS"),9,0),"-") -> - | D34: Комментарий | H34: =IFERROR(VLOOKUP(I$25,Рецептуры!$A$154:$S$204,8,FALSE),"-") -> - | J34: =IFERROR(VLOOKUP(I$25,IF(Рецептуры!$B$2:$B$151=I$26,Рецептуры!$A$2:$T$151,"OOPS"),9,0),"-") -> - | K34: Комментарий
A35: =IFERROR(VLOOKUP(B$25,Рецептуры!$A$154:$S$204,9,FALSE),"-") -> - | C35: =IFERROR(VLOOKUP(B$25,IF(Рецептуры!$B$2:$B$151=B$26,Рецептуры!$A$2:$T$151,"OOPS"),10,0),"-") -> - | D35: =IFERROR(VLOOKUP(B$25,Рецептуры!$A$208:$G$257,7,FALSE),"-") -> - | H35: =IFERROR(VLOOKUP(I$25,Рецептуры!$A$154:$S$204,9,FALSE),"-") -> - | J35: =IFERROR(VLOOKUP(I$25,IF(Рецептуры!$B$2:$B$151=I$26,Рецептуры!$A$2:$T$151,"OOPS"),10,0),"-") -> - | K35: =IFERROR(VLOOKUP(I$25,Рецептуры!$A$208:$G$257,7,FALSE),"-") -> -
A36: =IFERROR(VLOOKUP(B$25,Рецептуры!$A$154:$S$204,13,FALSE),"-") -> - | B36: =IFERROR(VLOOKUP(B$25,Рецептуры!$A$208:$F$257,6,FALSE),"-") -> - | C36: =IFERROR(VLOOKUP(B$25,IF(Рецептуры!$B$2:$B$151=B$26,Рецептуры!$A$2:$T$151,"OOPS"),11,0),"-") -> - | H36: =IFERROR(VLOOKUP(I$25,Рецептуры!$A$154:$S$204,13,FALSE),"-") -> - | I36: =IFERROR(VLOOKUP(I$25,Рецептуры!$A$208:$F$257,6,FALSE),"-") -> - | J36: =IFERROR(VLOOKUP(I$25,IF(Рецептуры!$B$2:$B$151=I$26,Рецептуры!$A$2:$T$151,"OOPS"),11,0),"-") -> -
A37: =IFERROR(VLOOKUP(B$25,Рецептуры!$A$154:$S$204,10,FALSE),"-") -> - | C37: =IFERROR(VLOOKUP(B$25,IF(Рецептуры!$B$2:$B$151=B$26,Рецептуры!$A$2:$T$151,"OOPS"),12,0),"-") -> - | H37: =IFERROR(VLOOKUP(I$25,Рецептуры!$A$154:$S$204,10,FALSE),"-") -> - | J37: =IFERROR(VLOOKUP(I$25,IF(Рецептуры!$B$2:$B$151=I$26,Рецептуры!$A$2:$T$151,"OOPS"),12,0),"-") -> -
A38: =IFERROR(VLOOKUP(B$25,Рецептуры!$A$154:$S$204,14,FALSE),"-") -> - | C38: =IFERROR(VLOOKUP(B$25,IF(Рецептуры!$B$2:$B$151=B$26,Рецептуры!$A$2:$T$151,"OOPS"),13,0),"-") -> - | H38: =IFERROR(VLOOKUP(I$25,Рецептуры!$A$154:$S$204,14,FALSE),"-") -> - | J38: =IFERROR(VLOOKUP(I$25,IF(Рецептуры!$B$2:$B$151=I$26,Рецептуры!$A$2:$T$151,"OOPS"),13,0),"-") -> -
A39: =IFERROR(VLOOKUP(B$25,Рецептуры!$A$154:$S$204,11,FALSE),"oops") -> oops | C39: =IFERROR(VLOOKUP(B$25,IF(Рецептуры!$B$2:$B$151=B$26,Рецептуры!$A$2:$T$151,"OOPS"),14,0),"-") -> - | H39: =IFERROR(VLOOKUP(I$25,Рецептуры!$A$154:$S$204,11,FALSE),"oops") -> oops | J39: =IFERROR(VLOOKUP(I$25,IF(Рецептуры!$B$2:$B$151=I$26,Рецептуры!$A$2:$T$151,"OOPS"),14,0),"-") -> -
A40: =IFERROR(VLOOKUP(B$25,Рецептуры!$A$154:$S$204,12,FALSE),"oops") -> oops | C40: =IFERROR(VLOOKUP(B$25,IF(Рецептуры!$B$2:$B$151=B$26,Рецептуры!$A$2:$T$151,"OOPS"),15,0),"-") -> - | H40: =IFERROR(VLOOKUP(I$25,Рецептуры!$A$154:$S$204,12,FALSE),"oops") -> oops | J40: =IFERROR(VLOOKUP(I$25,IF(Рецептуры!$B$2:$B$151=I$26,Рецептуры!$A$2:$T$151,"OOPS"),15,0),"-") -> -
A41: Мелющие тела | B41: =IFERROR(VLOOKUP(B$25,Рецептуры!$A$208:$E$257,5,FALSE),"-") -> - | C41: =IFERROR(VLOOKUP(B$25,IF(Рецептуры!$B$2:$B$151=B$26,Рецептуры!$A$2:$T$151,"OOPS"),16,0),"-") -> - | H41: Мелющие тела | I41: =IFERROR(VLOOKUP(I$25,Рецептуры!$A$208:$E$257,5,FALSE),"-") -> - | J41: =IFERROR(VLOOKUP(I$25,IF(Рецептуры!$B$2:$B$151=I$26,Рецептуры!$A$2:$T$151,"OOPS"),16,0),"-") -> -
A42: Время помола, ч | C42: =IFERROR(VLOOKUP(B$25,IF(Рецептуры!$B$2:$B$151=B$26,Рецептуры!$A$2:$T$151,"OOPS"),17,0),"0") -> 0 | H42: Время помола, ч | J42: =IFERROR(VLOOKUP(I$25,IF(Рецептуры!$B$2:$B$151=I$26,Рецептуры!$A$2:$T$151,"OOPS"),17,0),"0") -> 0
I45: =IFERROR(VLOOKUP(Скелет!I1,Скелет!J1:K10,2,FALSE),0) -> Петя | J45: _______________________ | L45: =NOW() -> 2020-06-24T14:41:02.780

Sheet Рецептуры
C1: пункт 1 | D1: пункт 1 72 | E1: пункт 1 120 | F1: пункт 2 | G1: пункт 3 | H1: пункт 1Пх | I1: Tiпункт 15 | J1: пункт 4 | K1: пункт 5 | L1: пункт 6 | M1: пункт 7 | N1: пункт 8 | O1: пункт 9 | P1: пункт 10 | Q1: пункт 11 | R1: пункт 12 | S1: сумма
A2: Имя 1 | B2: номер 100-2 | C2: 39.78 | D2: 28.17 | E2: 12.06 | F2: 9 | G2: 0.54 | H2: 0.45 | I2: - | J2: - | K2: - | L2: - | M2: - | N2: 30 | O2: 10 | P2: 400 | Q2: 72 | R2: 0.07 | S2: =SUM(C2:K2) -> 90
A3: Имя 1 | B3: номер 200-2 | C3: 79.56 | D3: 56.34 | E3: 24.12 | F3: 18 | G3: 1.08 | H3: 0.9 | I3: - | J3: - | K3: - | L3: - | M3: - | N3: 60 | O3: 20 | P3: 800 | Q3: 72 | R3: 0.131 | S3: =SUM(C3:K3) -> 180
A4: Имя 1 | B4: номер 200-3 | C4: 79.56 | D4: 56.34 | E4: 24.12 | F4: 18 | G4: 1.08 | H4: 0.9 | I4: - | J4: - | K4: - | L4: - | M4: - | N4: 60 | O4: 20 | P4: 800 | Q4: 72 | R4: 0.06 | S4: 180
A5: Имя 2 | B5: номер 100-1 | C5: 51.2 | D5: - | E5: - | F5: 6.4 | G5: - | H5: - | I5: 22.4 | J5: - | K5: - | L5: - | M5: - | N5: 30 | O5: 15 | P5: 400 | Q5: 48 | R5: 0.03527 | S5: 80
A6: Имя 2 | B6: номер 200-1 | C6: 102.4 | D6: - | E6: - | F6: 12.8 | G6: - | H6: - | I6: 44.8 | J6: - | K6: - | L6: - | M6: - | N6: 60 | O6: 30 | P6: 800 | Q6: 48 | R6: 0.0808 | S6: 160
A7: Имя 2 | B7: номер 600-1 | C7: 345.6 | D7: - | E7: - | F7: 43.2 | G7: - | H7: - | I7: 151.2 | J7: - | K7: - | L7: - | M7: - | N7: 150 | O7: 70 | P7: 2400 | Q7: атт | R7: 0.49625 | S7: 540
A8: Имя 3 | B8: номер 100-1 | C8: 51.2 | D8: - | E8: - | F8: 4.8 | G8: - | H8: - | I8: 24 | J8: - | K8: - | L8: - | M8: - | N8: 30 | O8: 15 | P8: 400 | Q8: 36 | R8: 0.03527 | S8: 80
A9: Имя 3 | B9: номер 200-1 | C9: 102.4 | D9: - | E9: - | F9: 9.6 | G9: - | H9: - | I9: 48 | J9: - | K9: - | L9: - | M9: - | N9: 60 | O9: 30 | P9: 800 | Q9: 36 | R9: 0.0808 | S9: 160
A10: Имя 3 | B10: номер 600-1 | C10: 345.6 | D10: - | E10: - | F10: 32.4 | G10: - | H10: - | I10: 162 | J10: - | K10: - | L10: - | M10: - | N10: 150 | O10: 70 | P10: 2400 | Q10: атт | R10: 0.49625 | S10: 540
A11: Имя 4 | B11: номер 100-1 | C11: 73 | D11: - | E11: - | F11: 4.76 | G11: - | H11: - | I11: 7.38 | J11: 4.86 | K11: - | L11: - | M11: - | N11: 30 | O11: 15 | P11: 400 | Q11: 48 | R11: 0.03527 | S11: 90
A12: Имя 4 | B12: номер 200-1 | C12: 146 | D12: - | E12: - | F12: 9.52 | G12: - | H12: - | I12: 14.76 | J12: 9.72 | K12: - | L12: - | M12: - | N12: 60 | O12: 30 | P12: 800 | Q12: 48 | R12: 0.0808 | S12: 180
A13: Имя 4 | B13: номер 600-1 | C13: 438 | D13: - | E13: - | F13: 28.56 | G13: - | H13: - | I13: 44.28 | J13: 29.16 | K13: - | L13: - | M13: - | N13: 150 | O13: 70 | P13: 2400 | Q13: 24 | R13: 0.49625 | S13: 540
A14: Имя 5 | B14: номер 100-1 | C14: 68.76 | D14: - | E14: - | F14: 5.4 | G14: - | H14: - | I14: 13.5 | J14: 2.34 | K14: - | L14: - | M14: - | N14: 30 | O14: 15 | P14: 400 | Q14: 60 | R14: 0.03527 | S14: 90
A15: Имя 5 | B15: номер 200-1 | C15: 137.52 | D15: - | E15: - | F15: 10.8 | G15: - | H15: - | I15: 27 | J15: 4.68 | K15: - | L15: - | M15: - | N15: 60 | O15: 30 | P15: 800 | Q15: 60 | R15: 0.0808 | S15: 180
A16: Имя 5 | B16: номер 600-1 | C16: 412.56 | D16: - | E16: - | F16: 32.4 | G16: - | H16: - | I16: 81 | J16: 14.04 | K16: - | L16: - | M16: - | N16: 150 | O16: 70 | P16: 2400 | Q16: 32 | R16: 0.49625 | S16: 540
A17: Имя 6 | B17: номер 100-1 | C17: 65.36 | D17: - | E17: - | F17: 5.2 | G17: - | H17: - | I17: 5.2 | J17: 4.24 | K17: - | L17: - | M17: - | N17: 30 | O17: 15 | P17: 400 | Q17: 36 | R17: 0.03527 | S17: 80
A18: Имя 6 | B18: номер 200-1 | C18: 130.72 | D18: - | E18: - | F18: 10.4 | G18: - | H18: - | I18: 10.4 | J18: 8.48 | K18: - | L18: - | M18: - | N18: 60 | O18: 30 | P18: 800 | Q18: 36 | R18: 0.0808 | S18: 160
A19: Имя 6 | B19: номер 600-1 | C19: 441.18 | D19: - | E19: - | F19: 35.1 | G19: - | H19: - | I19: 35.1 | J19: 28.62 | K19: - | L19: - | M19: - | N19: 150 | O19: 70 | P19: 2400 | Q19: атт | R19: 0.49625 | S19: 540
A20: Имя 7 | B20: номер 100-1 | C20: 59.52 | D20: - | E20: - | F20: 5.6 | G20: - | H20: - | I20: 10.64 | J20: 4.24 | K20: - | L20: - | M20: - | N20: 30 | O20: 15 | P20: 400 | Q20: 48 | R20: 0.03527 | S20: 80
A21: Имя 7 | B21: номер 200-1 | C21: 119.04 | D21: - | E21: - | F21: 11.2 | G21: - | H21: - | I21: 21.28 | J21: 8.48 | K21: - | L21: - | M21: - | N21: 60 | O21: 30 | P21: 800 | Q21: 48 | R21: 0.0808 | S21: 160
A22: Имя 7 | B22: номер 600-1 | C22: 401.76 | D22: - | E22: - | F22: 37.8 | G22: - | H22: - | I22: 71.82 | J22: 28.62 | K22: - | L22: - | M22: - | N22: 150 | O22: 70 | P22: 2400 | Q22: атт | R22: 0.49625 | S22: 540
A23: Имя 8 | B23: номер 100-1 | C23: 58.56 | D23: - | E23: - | F23: 8.8 | G23: - | H23: - | I23: 7.04 | J23: 5.6 | K23: - | L23: - | M23: - | N23: 30 | O23: 15 | P23: 400 | Q23: 64 | R23: 0.03527 | S23: 80
A24: Имя 8 | B24: номер 200-1 | C24: 117.12 | D24: - | E24: - | F24: 17.6 | G24: - | H24: - | I24: 14.08 | J24: 11.2 | K24: - | L24: - | M24: - | N24: 60 | O24: 30 | P24: 800 | Q24: 64 | R24: 0.0808 | S24: 160
A25: Имя 8 | B25: номер 600-1 | C25: 395.28 | D25: - | E25: - | F25: 59.4 | G25: - | H25: - | I25: 47.52 | J25: 37.8 | K25: - | L25: - | M25: - | N25: 150 | O25: 70 | P25: 2400 | Q25: атт | R25: 0.49625 | S25: 540
A26: Имя 9 | B26: номер 100-1 | C26: 59.2 | D26: - | E26: - | F26: 8.8 | G26: - | H26: - | I26: 8 | J26: 4 | K26: - | L26: - | M26: - | N26: 30 | O26: 15 | P26: 400 | Q26: 48 | R26: 0.03527 | S26: 80
A27: Имя 9 | B27: номер 200-1 | C27: 118.4 | D27: - | E27: - | F27: 17.6 | G27: - | H27: - | I27: 16 | J27: 8 | K27: - | L27: - | M27: - | N27: 60 | O27: 30 | P27: 800 | Q27: 48 | R27: 0.0808 | S27: 160
A28: Имя 9 | B28: номер 600-1 | C28: 399.6 | D28: - | E28: - | F28: 59.4 | G28: - | H28: - | I28: 54 | J28: 27 | K28: - | L28: - | M28: - | N28: 150 | O28: 70 | P28: 2400 | Q28: атт | R28: 0.49625 | S28: 540
A29: Имя 10 | B29: номер 100-1 | C29: 50.92322643 | D29: - | E29: - | F29: 7.774538387 | G29: - | H29: - | I29: 9.329446064 | J29: 11.97278912 | K29: - | L29: - | M29: - | N29: 30 | O29: 15 | P29: 400 | Q29: 48 | R29: 0.03527 | S29: 80
A30: Имя 10 | B30: номер 200-1 | C30: 101.8464529 | D30: - | E30: - | F30: 15.54907677 | G30: - | H30: - | I30: 18.65889213 | J30: 23.94557823 | K30: - | L30: - | M30: - | N30: 60 | O30: 30 | P30: 800 | Q30: 48 | R30: 0.0808 | S30: 160
A31: Имя 10 | B31: номер 600-1 | C31: 343.7317784 | D31: - | E31: - | F31: 52.47813411 | G31: - | H31: - | I31: 62.97376093 | J31: 80.81632653 | K31: - | L31: - | M31: - | N31: 150 | O31: 70 | P31: 2400 | Q31: атт | R31: 0.49625 | S31: 540
A32: Имя 1ПЭГ | B32: номер 100-2 | C32: 39.78 | D32: 28.17 | E32: 12.06 | F32: 9 | G32: 0.54 | H32: 0.45 | I32: - | J32: - | K32: - | L32: 2.25 | M32: 0.023 | N32: =0.222*S32 -> 19.98 | O32: =0.083*S32 -> 7.47 | P32: 400 | Q32: 72 | R32: 0.07 | S32: 90
A33: Имя 1ПЭГ | B33: номер 200-2 | C33: 79.56 | D33: 56.34 | E33: 24.12 | F33: 18 | G33: 1.08 | H33: 0.9 | I33: - | J33: - | K33: - | L33: 4.5 | M33: 0.045 | N33: =0.222*S33 -> 39.96 | O33: =0.083*S33 -> 14.94 | P33: 800 | Q33: 72 | R33: 0.131 | S33: 180
A34: Имя 1ПЭГ | B34: номер 200-3 | C34: 79.56 | D34: 56.34 | E34: 24.12 | F34: 18 | G34: 1.08 | H34: 0.9 | I34: - | J34: - | K34: - | L34: 4.5 | M34: 0.045 | N34: =0.222*S34 -> 39.96 | O34: =0.083*S34 -> 14.94 | P34: 800 | Q34: 72 | R34: 0.06 | S34: 180
A35: Имя 2ПЭГ | B35: номер 100-1 | C35: 51.2 | D35: - | E35: - | F35: 6.4 | G35: - | H35: - | I35: 22.4 | J35: - | K35: - | L35: 2 | M35: - | N35: =0.2625*S35 -> 21 | O35: =0.1125*S35 -> 9 | P35: 400 | Q35: 48 | R35: 0.03527 | S35: 80
A36: Имя 2ПЭГ | B36: номер 200-1 | C36: 102.4 | D36: - | E36: - | F36: 12.8 | G36: - | H36: - | I36: 44.8 | J36: - | K36: - | L36: 4 | M36: - | N36: =0.2625*S36 -> 42 | O36: =0.1125*S36 -> 18 | P36: 800 | Q36: 48 | R36: 0.0808 | S36: 160
A37: Имя 2ПЭГ | B37: номер 600-1 | C37: 345.6 | D37: - | E37: - | F37: 43.2 | G37: - | H37: - | I37: 151.2 | J37: - | K37: - | L37: 13.5 | M37: - | N37: 130 | O37: 40 | P37: 2400 | Q37: атт | R37: 0.49625 | S37: 540
A38: Имя 3ПЭГ | B38: номер 100-1 | C38: 51.2 | D38: - | E38: - | F38: 4.8 | G38: - | H38: - | I38: 24 | J38: - | K38: - | L38: 2 | M38: - | N38: 21 | O38: 9 | P38: 400 | Q38: 36 | R38: 0.03527 | S38: 80
A39: Имя 3ПЭГ | B39: номер 200-1 | C39: 102.4 | D39: - | E39: - | F39: 9.6 | G39: - | H39: - | I39: 48 | J39: - | K39: - | L39: 4 | M39: - | N39: 42 | O39: 18 | P39: 800 | Q39: 36 | R39: 0.0808 | S39: 160
A40: Имя 3ПЭГ | B40: номер 600-1 | C40: 345.6 | D40: - | E40: - | F40: 32.4 | G40: - | H40: - | I40: 162 | J40: - | K40: - | L40: 13.5 | M40: - | N40: 141.75 | O40: 60.75 | P40: 2400 | Q40: атт | R40: 0.49625 | S40: 540
A41: Имя 4ПЭГ | B41: номер 100-1 | C41: 73 | D41: - | E41: - | F41: 4.76 | G41: - | H41: - | I41: 7.38 | J41: 4.86 | K41: - | L41: 2.25 | M41: - | N41: 23.625 | O41: 10.125 | P41: 400 | Q41: 48 | R41: 0.03527 | S41: 90
A42: Имя 4ПЭГ | B42: номер 200-1 | C42: 146 | D42: - | E42: - | F42: 9.52 | G42: - | H42: - | I42: 14.76 | J42: 9.72 | K42: - | L42: 4.5 | M42: - | N42: 47.25 | O42: 20.25 | P42: 800 | Q42: 48 | R42: 0.0808 | S42: 180
A43: Имя 4ПЭГ | B43: номер 600-1 | C43: 438 | D43: - | E43: - | F43: 28.56 | G43: - | H43: - | I43: 44.28 | J43: 29.16 | K43: - | L43: 13.5 | M43: - | N43: 130 | O43: 40 | P43: 2400 | Q43: 24 | R43: 0.49625 | S43: 540
A44: Имя 5ПЭГ | B44: номер 100-1 | C44: 68.76 | D44: - | E44: - | F44: 5.4 | G44: - | H44: - | I44: 13.5 | J44: 2.34 | K44: - | L44: 2.25 | M44: - | N44: 23.625 | O44: 10.125 | P44: 400 | Q44: 60 | R44: 0.03527 | S44: 90
A45: Имя 5ПЭГ | B45: номер 200-1 | C45: 137.52 | D45: - | E45: - | F45: 10.8 | G45: - | H45: - | I45: 27 | J45: 4.68 | K45: - | L45: 4.5 | M45: - | N45: 47.25 | O45: 20.25 | P45: 800 | Q45: 60 | R45: 0.0808 | S45: 180
A46: Имя 5ПЭГ | B46: номер 600-1 | C46: 412.56 | D46: - | E46: - | F46: 32.4 | G46: - | H46: - | I46: 81 | J46: 14.04 | K46: - | L46: 13.5 | M46: - | N46: 130 | O46: 40 | P46: 2400 | Q46: 30 | R46: 0.49625 | S46: 540
A47: Имя 6ПЭГ | B47: номер 100-1 | C47: 65.36 | D47: - | E47: - | F47: 5.2 | G47: - | H47: - | I47: 5.2 | J47: 4.24 | K47: - | L47: 2 | M47: - | N47: 21 | O47: 9 | P47: 400 | Q47: 36 | R47: 0.03527 | S47: 80
A48: Имя 6ПЭГ | B48: номер 200-1 | C48: 130.72 | D48: - | E48: - | F48: 10.4 | G48: - | H48: - | I48: 10.4 | J48: 8.48 | K48: - | L48: 4 | M48: - | N48: 42 | O48: 18 | P48: 800 | Q48: 36 | R48: 0.0808 | S48: 160
A49: Имя 6ПЭГ | B49: номер 600-1 | C49: 441.18 | D49: - | E49: - | F49: 35.1 | G49: - | H49: - | I49: 35.1 | J49: 28.62 | K49: - | L49: 13.5 | M49: - | N49: 130 | O49: 40 | P49: 2400 | Q49: атт | R49: 0.49625 | S49: 540
A50: Имя 7ПЭГ | B50: номер 100-1 | C50: 59.52 | D50: - | E50: - | F50: 5.6 | G50: - | H50: - | I50: 10.64 | J50: 4.24 | K50: - | L50: 2 | M50: - | N50: 21 | O50: 9 | P50: 400 | Q50: 48 | R50: 0.03527 | S50: 80
A51: Имя 7ПЭГ | B51: номер 200-1 | C51: 119.04 | D51: - | E51: - | F51: 11.2 | G51: - | H51: - | I51: 21.28 | J51: 8.48 | K51: - | L51: 4 | M51: - | N51: 42 | O51: 18 | P51: 800 | Q51: 48 | R51: 0.0808 | S51: 160
A52: Имя 7ПЭГ | B52: номер 600-1 | C52: 401.76 | D52: - | E52: - | F52: 37.8 | G52: - | H52: - | I52: 71.82 | J52: 28.62 | K52: - | L52: 13.5 | M52: - | N52: 130 | O52: 40 | P52: 2400 | Q52: атт | R52: 0.49625 | S52: 540
A53: Имя 8ПЭГ | B53: номер 100-1 | C53: 58.56 | D53: - | E53: - | F53: 8.8 | G53: - | H53: - | I53: 7.04 | J53: 5.6 | K53: - | L53: 2 | M53: - | N53: 21 | O53: 9 | P53: 400 | Q53: 64 | R53: 0.03527 | S53: 80
A54: Имя 8ПЭГ | B54: номер 200-1 | C54: 117.12 | D54: - | E54: - | F54: 17.6 | G54: - | H54: - | I54: 14.08 | J54: 11.2 | K54: - | L54: 4 | M54: - | N54: 42 | O54: 18 | P54: 800 | Q54: 64 | R54: 0.0808 | S54: 160
A55: Имя 8ПЭГ | B55: номер 600-1 | C55: 395.28 | D55: - | E55: - | F55: 59.4 | G55: - | H55: - | I55: 47.52 | J55: 37.8 | K55: - | L55: 13.5 | M55: - | N55: 130 | O55: 40 | P55: 2400 | Q55: атт | R55: 0.49625 | S55: 540
A56: Имя 9ПЭГ | B56: номер 100-1 | C56: 59.2 | D56: - | E56: - | F56: 8.8 | G56: - | H56: - | I56: 8 | J56: 4 | K56: - | L56: 2 | M56: - | N56: 21 | O56: 9 | P56: 400 | Q56: 48 | R56: 0.03527 | S56: 80
A57: Имя 9ПЭГ | B57: номер 200-1 | C57: 118.4 | D57: - | E57: - | F57: 17.6 | G57: - | H57: - | I57: 16 | J57: 8 | K57: - | L57: 4 | M57: - | N57: 42 | O57: 18 | P57: 800 | Q57: 48 | R57: 0.0808 | S57: 160
A58: Имя 9ПЭГ | B58: номер 600-1 | C58: 399.6 | D58: - | E58: - | F58: 59.4 | G58: - | H58: - | I58: 54 | J58: 27 | K58: - | L58: 13.5 | M58: - | N58: 130 | O58: 40 | P58: 2400 | Q58: атт | R58: 0.49625 | S58: 540
A59: Имя 10ПЭГ | B59: номер 100-1 | C59: 50.92322643 | D59: - | E59: - | F59: 7.774538387 | G59: - | H59: - | I59: 9.329446064 | J59: 11.97278912 | K59: - | L59: 2 | M59: - | N59: 21 | O59: 9 | P59: 400 | Q59: 48 | R59: 0.03527 | S59: 80
A60: Имя 10ПЭГ | B60: номер 200-1 | C60: 101.8464529 | D60: - | E60: - | F60: 15.54907677 | G60: - | H60: - | I60: 18.65889213 | J60: 23.94557823 | K60: - | L60: 4 | M60: - | N60: 42 | O60: 18 | P60: 800 | Q60: 48 | R60: 0.0808 | S60: 160
A61: Имя 10ПЭГ | B61: номер 600-1 | C61: 343.7317784 | D61: - | E61: - | F61: 52.47813411 | G61: - | H61: - | I61: 62.97376093 | J61: 80.81632653 | K61: - | L61: 13.5 | M61: - | N61: 130 | O61: 40 | P61: 2400 | Q61: атт | R61: 0.49625 | S61: 540
A62: Имя 1+10% пункт 5а | B62: номер 100-2 | C62: =C2/$S2*($S2-0.1*$S2) -> 35.802 | D62: 25.353 | E62: 10.854 | F62: 8.1 | G62: 0.486 | H62: 0.405 | I62: - | J62: - | K62: 9 | L62: - | M62: - | N62: 30 | O62: 10 | P62: 400 | Q62: 68 | R62: 0.07 | S62: 90
A63: Имя 1+10% пункт 5а | B63: номер 200-2 | C63: 71.604 | D63: 50.706 | E63: 21.708 | F63: 16.2 | G63: 0.972 | H63: 0.81 | I63: - | J63: - | K63: 18 | L63: - | M63: - | N63: 60 | O63: 20 | P63: 800 | Q63: 68 | R63: 0.131 | S63: 180
A64: Имя 1+10% пункт 5а | B64: номер 200-3 | C64: 71.604 | D64: 50.706 | E64: 21.708 | F64: 16.2 | G64: 0.972 | H64: 0.81 | I64: - | J64: - | K64: 18 | L64: - | M64: - | N64: 60 | O64: 20 | P64: 800 | Q64: 68 | R64: 0.06 | S64: 180
A65: Имя 2+10% пункт 5а | B65: номер 100-1 | C65: =C5/$S5*($S5-0.1*$S5) -> 46.08 | D65: - | E65: - | F65: =F5/$S5*($S5-0.1*$S5) -> 5.76 | G65: - | H65: - | I65: =I5/$S5*($S5-0.1*$S5) -> 20.16 | J65: - | K65: 8 | L65: - | M65: - | N65: 30 | O65: 15 | P65: 400 | Q65: 48 | R65: 0.03527 | S65: 80
A66: Имя 2+10% пункт 5а | B66: номер 200-1 | C66: 92.16 | D66: - | E66: - | F66: 11.52 | G66: - | H66: - | I66: 40.32 | J66: - | K66: 16 | L66: - | M66: - | N66: 60 | O66: 30 | P66: 800 | Q66: 48 | R66: 0.0808 | S66: 160
A67: Имя 2+10% пункт 5а | B67: номер 600-1 | C67: 311.04 | D67: - | E67: - | F67: 38.88 | G67: - | H67: - | I67: 136.08 | J67: - | K67: 54 | L67: - | M67: - | N67: 150 | O67: 70 | P67: 2400 | Q67: атт | R67: 0.49625 | S67: =SUM(C67:K67) -> 540
A68: Имя 3+10% пункт 5а | B68: номер 100-1 | C68: 46.08 | D68: - | E68: - | F68: 4.32 | G68: - | H68: - | I68: 21.6 | J68: - | K68: 8 | L68: - | M68: - | N68: 30 | O68: 15 | P68: 400 | Q68: 36 | R68: 0.03527 | S68: 80
A69: Имя 3+10% пункт 5а | B69: номер 200-1 | C69: 92.16 | D69: - | E69: - | F69: 8.64 | G69: - | H69: - | I69: 43.2 | J69: - | K69: 16 | L69: - | M69: - | N69: 60 | O69: 30 | P69: 800 | Q69: 36 | R69: 0.0808 | S69: 160
A70: Имя 3+10% пункт 5а | B70: номер 600-1 | C70: 311.04 | D70: - | E70: - | F70: 29.16 | G70: - | H70: - | I70: 145.8 | J70: - | K70: 54 | L70: - | M70: - | N70: 150 | O70: 70 | P70: 2400 | Q70: атт | R70: 0.49625 | S70: 540
A71: Имя 4+10% пункт 5а | B71: номер 100-1 | C71: 65.7 | D71: - | E71: - | F71: 4.284 | G71: - | H71: - | I71: 6.642 | J71: =J11/$S11*($S11-0.1*$S11) -> 4.374 | K71: 9 | L71: - | M71: - | N71: 30 | O71: 15 | P71: 400 | Q71: 48 | R71: 0.03527 | S71: 90
A72: Имя 4+10% пункт 5а | B72: номер 200-1 | C72: 131.4 | D72: - | E72: - | F72: 8.568 | G72: - | H72: - | I72: 13.284 | J72: 8.748 | K72: 18 | L72: - | M72: - | N72: 60 | O72: 30 | P72: 800 | Q72: 48 | R72: 0.0808 | S72: 180
A73: Имя 4+10% пункт 5а | B73: номер 600-1 | C73: 394.2 | D73: - | E73: - | F73: 25.704 | G73: - | H73: - | I73: 39.852 | J73: 26.244 | K73: 54 | L73: - | M73: - | N73: 150 | O73: 70 | P73: 2400 | Q73: 24 | R73: 0.49625 | S73: 540
A74: Имя 5+10% пункт 5а | B74: номер 100-1 | C74: 61.884 | D74: - | E74: - | F74: 4.86 | G74: - | H74: - | I74: 12.15 | J74: 2.106 | K74: 9 | L74: - | M74: - | N74: 30 | O74: 15 | P74: 400 | Q74: 60 | R74: 0.03527 | S74: 90
A75: Имя 5+10% пункт 5а | B75: номер 200-1 | C75: 123.768 | D75: - | E75: - | F75: 9.72 | G75: - | H75: - | I75: 24.3 | J75: 4.212 | K75: 18 | L75: - | M75: - | N75: 60 | O75: 30 | P75: 800 | Q75: 60 | R75: 0.0808 | S75: 180
A76: Имя 5+10% пункт 5а | B76: номер 600-1 | C76: 371.304 | D76: - | E76: - | F76: 29.16 | G76: - | H76: - | I76: 72.9 | J76: 12.636 | K76: 54 | L76: - | M76: - | N76: 150 | O76: 70 | P76: 2400 | Q76: 30 | R76: 0.49625 | S76: 540
A77: Имя 6+10% пункт 5а | B77: номер 100-1 | C77: 58.824 | D77: - | E77: - | F77: 4.68 | G77: - | H77: - | I77: 4.68 | J77: 3.816 | K77: 8 | L77: - | M77: - | N77: 30 | O77: 15 | P77: 400 | Q77: 36 | R77: 0.03527 | S77: 80
A78: Имя 6+10% пункт 5а | B78: номер 200-1 | C78: 117.648 | D78: - | E78: - | F78: 9.36 | G78: - | H78: - | I78: 9.36 | J78: 7.632 | K78: 16 | L78: - | M78: - | N78: 60 | O78: 30 | P78: 800 | Q78: 36 | R78: 0.0808 | S78: 160
A79: Имя 6+10% пункт 5а | B79: номер 600-1 | C79: 397.062 | D79: - | E79: - | F79: 31.59 | G79: - | H79: - | I79: 31.59 | J79: 25.758 | K79: 54 | L79: - | M79: - | N79: 150 | O79: 70 | P79: 2400 | Q79: атт | R79: 0.49625 | S79: 540
A80: Имя 7+10% пункт 5а | B80: номер 100-1 | C80: 53.568 | D80: - | E80: - | F80: 5.04 | G80: - | H80: - | I80: 9.576 | J80: 3.816 | K80: 8 | L80: - | M80: - | N80: 30 | O80: 15 | P80: 400 | Q80: 48 | R80: 0.03527 | S80: 80
A81: Имя 7+10% пункт 5а | B81: номер 200-1 | C81: 107.136 | D81: - | E81: - | F81: 10.08 | G81: - | H81: - | I81: 19.152 | J81: 7.632 | K81: 16 | L81: - | M81: - | N81: 60 | O81: 30 | P81: 800 | Q81: 48 | R81: 0.0808 | S81: 160
A82: Имя 7+10% пункт 5а | B82: номер 600-1 | C82: 361.584 | D82: - | E82: - | F82: 34.02 | G82: - | H82: - | I82: 64.638 | J82: 25.758 | K82: 54 | L82: - | M82: - | N82: 150 | O82: 70 | P82: 2400 | Q82: атт | R82: 0.49625 | S82: 540
A83: Имя 8+10% пункт 5а | B83: номер 100-1 | C83: 52.704 | D83: - | E83: - | F83: 7.92 | G83: - | H83: - | I83: 6.336 | J83: 5.04 | K83: 8 | L83: - | M83: - | N83: 30 | O83: 15 | P83: 400 | Q83: 64 | R83: 0.03527 | S83: 80
A84: Имя 8+10% пункт 5а | B84: номер 200-1 | C84: 105.408 | D84: - | E84: - | F84: 15.84 | G84: - | H84: - | I84: 12.672 | J84: 10.08 | K84: 16 | L84: - | M84: - | N84: 60 | O84: 30 | P84: 800 | Q84: 64 | R84: 0.0808 | S84: 160
A85: Имя 8+10% пункт 5а | B85: номер 600-1 | C85: 355.752 | D85: - | E85: - | F85: 53.46 | G85: - | H85: - | I85: 42.768 | J85: 34.02 | K85: 54 | L85: - | M85: - | N85: 150 | O85: 70 | P85: 2400 | Q85: атт | R85: 0.49625 | S85: 540
A86: Имя 9+10% пункт 5а | B86: номер 100-1 | C86: 53.28 | D86: - | E86: - | F86: 7.92 | G86: - | H86: - | I86: 7.2 | J86: 3.6 | K86: 8 | L86: - | M86: - | N86: 30 | O86: 15 | P86: 400 | Q86: 48 | R86: 0.03527 | S86: 80
A87: Имя 9+10% пункт 5а | B87: номер 200-1 | C87: 106.56 | D87: - | E87: - | F87: 15.84 | G87: - | H87: - | I87: 14.4 | J87: 7.2 | K87: 16 | L87: - | M87: - | N87: 60 | O87: 30 | P87: 800 | Q87: 48 | R87: 0.0808 | S87: 160
A88: Имя 9+10% пункт 5а | B88: номер 600-1 | C88: 359.64 | D88: - | E88: - | F88: 53.46 | G88: - | H88: - | I88: 48.6 | J88: 24.3 | K88: 54 | L88: - | M88: - | N88: 150 | O88: 70 | P88: 2400 | Q88: атт | R88: 0.49625 | S88: 540
A89: Имя 10+10% пункт 5а | B89: номер 100-1 | C89: 45.83090379 | D89: - | E89: - | F89: 6.997084548 | G89: - | H89: - | I89: 8.396501458 | J89: 10.7755102 | K89: 8 | L89: - | M89: - | N89: 30 | O89: 15 | P89: 400 | Q89: 48 | R89: 0.03527 | S89: 80
A90: Имя 10+10% пункт 5а | B90: номер 200-1 | C90: 91.66180758 | D90: - | E90: - | F90: 13.9941691 | G90: - | H90: - | I90: 16.79300292 | J90: 21.55102041 | K90: 16 | L90: - | M90: - | N90: 60 | O90: 30 | P90: 800 | Q90: 48 | R90: 0.0808 | S90: 160
A91: Имя 10+10% пункт 5а | B91: номер 600-1 | C91: 309.3586006 | D91: - | E91: - | F91: 47.2303207 | G91: - | H91: - | I91: 56.67638484 | J91: 72.73469388 | K91: 54 | L91: - | M91: - | N91: 150 | O91: 70 | P91: 2400 | Q91: атт | R91: 0.49625 | S91: 540
A92: Имя 1ПЭГ+10% п/п на ПЭГ | B92: номер 100-2 | C92: 35.802 | D92: 25.353 | E92: 10.854 | F92: 8.1 | G92: 0.486 | H92: 0.405 | I92: - | J92: - | K92: 9 | L92: 2.025 | M92: 0.023 | N92: =0.222*S92 -> 19.98 | O92: =0.083*S92 -> 7.47 | P92: 400 | Q92: 68 | R92: 0.07 | S92: =SUM(C92:K92) -> 90
A93: Имя 1ПЭГ+10% п/п на ПЭГ | B93: номер 200-2 | C93: 71.604 | D93: 50.706 | E93: 21.708 | F93: 16.2 | G93: 0.972 | H93: 0.81 | I93: - | J93: - | K93: 18 | L93: 4.05 | M93: 0.045 | N93: =0.222*S93 -> 39.96 | O93: =0.083*S93 -> 14.94 | P93: 800 | Q93: 68 | R93: 0.131 | S93: 180
A94: Имя 1ПЭГ+10% п/п на ПЭГ | B94: номер 200-3 | C94: 71.604 | D94: 50.706 | E94: 21.708 | F94: 16.2 | G94: 0.972 | H94: 0.81 | I94: - | J94: - | K94: 18 | L94: 4.05 | M94: 0.045 | N94: =0.222*S94 -> 39.96 | O94: =0.083*S94 -> 14.94 | P94: 800 | Q94: 68 | R94: 0.06 | S94: 180
A95: Имя 2ПЭГ+10% п/п на ПЭГ | B95: номер 100-1 | C95: 46.08 | D95: - | E95: - | F95: 5.76 | G95: - | H95: - | I95: 20.16 | J95: - | K95: 8 | L95: 1.8 | M95: - | N95: =0.2625*S95 -> 21 | O95: =0.1125*S95 -> 9 | P95: 400 | Q95: 48 | R95: 0.03527 | S95: 80
A96: Имя 2ПЭГ+10% п/п на ПЭГ | B96: номер 200-1 | C96: 92.16 | D96: - | E96: - | F96: 11.52 | G96: - | H96: - | I96: 40.32 | J96: - | K96: 16 | L96: 3.6 | M96: - | N96: =0.2625*S96 -> 42 | O96: =0.1125*S96 -> 18 | P96: 800 | Q96: 48 | R96: 0.0808 | S96: 160
A97: Имя 2ПЭГ+10% п/п на ПЭГ | B97: номер 600-1 | C97: 311.04 | D97: - | E97: - | F97: 38.88 | G97: - | H97: - | I97: 136.08 | J97: - | K97: 54 | L97: 12.15 | M97: - | N97: 130 | O97: 40 | P97: 2400 | Q97: атт | R97: 0.49625 | S97: 540
A98: Имя 3ПЭГ+10% п/п на ПЭГ | B98: номер 100-1 | C98: 46.08 | D98: - | E98: - | F98: 4.32 | G98: - | H98: - | I98: 21.6 | J98: - | K98: 8 | L98: 1.8 | M98: - | N98: =0.2625*S98 -> 21 | O98: =0.1125*S98 -> 9 | P98: 400 | Q98: 36 | R98: 0.03527 | S98: 80
A99: Имя 3ПЭГ+10% п/п на ПЭГ | B99: номер 200-1 | C99: 92.16 | D99: - | E99: - | F99: 8.64 | G99: - | H99: - | I99: 43.2 | J99: - | K99: 16 | L99: 3.6 | M99: - | N99: =0.2625*S99 -> 42 | O99: 18 | P99: 800 | Q99: 36 | R99: 0.0808 | S99: =SUM(C99:K99) -> 160
A100: Имя 3ПЭГ+10% п/п на ПЭГ | B100: номер 600-1 | C100: 311.04 | D100: - | E100: - | F100: 29.16 | G100: - | H100: - | I100: 145.8 | J100: - | K100: 54 | L100: 12.15 | M100: - | N100: 141.75 | O100: 60.75 | P100: 2400 | Q100: атт | R100: 0.49625 | S100: 540
A101: Имя 4ПЭГ+10% п/п на ПЭГ | B101: номер 100-1 | C101: 65.7 | D101: - | E101: - | F101: 4.284 | G101: - | H101: - | I101: 6.642 | J101: 4.374 | K101: 9 | L101: 2.025 | M101: - | N101: 23.625 | O101: 10.125 | P101: 400 | Q101: 48 | R101: 0.03527 | S101: 90
A102: Имя 4ПЭГ+10% п/п на ПЭГ | B102: номер 200-1 | C102: 131.4 | D102: - | E102: - | F102: 8.568 | G102: - | H102: - | I102: 13.284 | J102: 8.748 | K102: 18 | L102: 4.05 | M102: - | N102: 47.25 | O102: 20.25 | P102: 800 | Q102: 48 | R102: 0.0808 | S102: 180
A103: Имя 4ПЭГ+10% п/п на ПЭГ | B103: номер 600-1 | C103: 394.2 | D103: - | E103: - | F103: 25.704 | G103: - | H103: - | I103: 39.852 | J103: 26.244 | K103: 54 | L103: 12.15 | M103: - | N103: 130 | O103: 40 | P103: 2400 | Q103: 24 | R103: 0.49625 | S103: 540
A104: Имя 5ПЭГ+10% п/п на ПЭГ | B104: номер 100-1 | C104: 61.884 | D104: - | E104: - | F104: 4.86 | G104: - | H104: - | I104: 12.15 | J104: 2.106 | K104: 9 | L104: 2.025 | M104: - | N104: =0.2625*S104 -> 23.625 | O104: =0.1125*S104 -> 10.125 | P104: 400 | Q104: 60 | R104: 0.03527 | S104: =SUM(C104:K104) -> 90
A105: Имя 5ПЭГ+10% п/п на ПЭГ | B105: номер 200-1 | C105: 123.768 | D105: - | E105: - | F105: 9.72 | G105: - | H105: - | I105: 24.3 | J105: 4.212 | K105: 18 | L105: 4.05 | M105: - | N105: =0.2625*S105 -> 47.25 | O105: =0.1125*S105 -> 20.25 | P105: 800 | Q105: 60 | R105: 0.0808 | S105: 180
A106: Имя 5ПЭГ+10% п/п на ПЭГ | B106: номер 600-1 | C106: 371.304 | D106: - | E106: - | F106: 29.16 | G106: - | H106: - | I106: 72.9 | J106: 12.636 | K106: 54 | L106: 12.15 | M106: - | N106: 130 | O106: 40 | P106: 2400 | Q106: 32 | R106: 0.49625 | S106: 540
A107: Имя 6ПЭГ+10% п/п на ПЭГ | B107: номер 100-1 | C107: 58.824 | D107: - | E107: - | F107: 4.68 | G107: - | H107: - | I107: 4.68 | J107: 3.816 | K107: 8 | L107: 1.8 | M107: - | N107: =0.2625*S107 -> 21 | O107: =0.1125*S107 -> 9 | P107: 400 | Q107: 36 | R107: 0.03527 | S107: 80
A108: Имя 6ПЭГ+10% п/п на ПЭГ | B108: номер 200-1 | C108: 117.648 | D108: - | E108: - | F108: 9.36 | G108: - | H108: - | I108: 9.36 | J108: 7.632 | K108: 16 | L108: 3.6 | M108: - | N108: 42 | O108: 18 | P108: 800 | Q108: 36 | R108: 0.0808 | S108: 160
A109: Имя 6ПЭГ+10% п/п на ПЭГ | B109: номер 600-1 | C109: 397.062 | D109: - | E109: - | F109: 31.59 | G109: - | H109: - | I109: 31.59 | J109: 25.758 | K109: 54 | L109: 12.15 | M109: - | N109: 130 | O109: 40 | P109: 2400 | Q109: атт | R109: 0.49625 | S109: 540
A110: Имя 7ПЭГ+10% п/п на ПЭГ | B110: номер 100-1 | C110: 53.568 | D110: - | E110: - | F110: 5.04 | G110: - | H110: - | I110: 9.576 | J110: 3.816 | K110: 8 | L110: 1.8 | M110: - | N110: =0.2625*S110 -> 21 | O110: =0.1125*S110 -> 9 | P110: 400 | Q110: 48 | R110: 0.03527 | S110: 80
A111: Имя 7ПЭГ+10% п/п на ПЭГ | B111: номер 200-1 | C111: 107.136 | D111: - | E111: - | F111: 10.08 | G111: - | H111: - | I111: 19.152 | J111: 7.632 | K111: 16 | L111: 3.6 | M111: - | N111: 42 | O111: 18 | P111: 800 | Q111: 48 | R111: 0.0808 | S111: 160
A112: Имя 7ПЭГ+10% п/п на ПЭГ | B112: номер 600-1 | C112: 361.584 | D112: - | E112: - | F112: 34.02 | G112: - | H112: - | I112: 64.638 | J112: 25.758 | K112: 54 | L112: 12.15 | M112: - | N112: 130 | O112: 40 | P112: 2400 | Q112: атт | R112: 0.49625 | S112: 540
A113: Имя 8ПЭГ+10% п/п на ПЭГ | B113: номер 100-1 | C113: 52.704 | D113: - | E113: - | F113: 7.92 | G113: - | H113: - | I113: 6.336 | J113: 5.04 | K113: 8 | L113: 1.8 | M113: - | N113: =0.2625*S113 -> 21 | O113: =0.1125*S113 -> 9 | P113: 400 | Q113: 64 | R113: 0.03527 | S113: 80
A114: Имя 8ПЭГ+10% п/п на ПЭГ | B114: номер 200-1 | C114: 105.408 | D114: - | E114: - | F114: 15.84 | G114: - | H114: - | I114: 12.672 | J114: 10.08 | K114: 16 | L114: 3.6 | M114: - | N114: 42 | O114: 18 | P114: 800 | Q114: 64 | R114: 0.0808 | S114: 160
A115: Имя 8ПЭГ+10% п/п на ПЭГ | B115: номер 600-1 | C115: 355.752 | D115: - | E115: - | F115: 53.46 | G115: - | H115: - | I115: 42.768 | J115: 34.02 | K115: 54 | L115: 12.15 | M115: - | N115: 130 | O115: 40 | P115: 2400 | Q115: атт | R115: 0.49625 | S115: 540
A116: Имя 9ПЭГ+10% п/п на ПЭГ | B116: номер 100-1 | C116: 53.28 | D116: - | E116: - | F116: 7.92 | G116: - | H116: - | I116: 7.2 | J116: 3.6 | K116: 8 | L116: 1.8 | M116: - | N116: =0.2625*S116 -> 21 | O116: =0.1125*S116 -> 9 | P116: 400 | Q116: 48 | R116: 0.03527 | S116: 80
A117: Имя 9ПЭГ+10% п/п на ПЭГ | B117: номер 200-1 | C117: 106.56 | D117: - | E117: - | F117: 15.84 | G117: - | H117: - | I117: 14.4 | J117: 7.2 | K117: 16 | L117: 3.6 | M117: - | N117: 42 | O117: 18 | P117: 800 | Q117: 48 | R117: 0.0808 | S117: 160
A118: Имя 9ПЭГ+10% п/п на ПЭГ | B118: номер 600-1 | C118: 359.64 | D118: - | E118: - | F118: 53.46 | G118: - | H118: - | I118: 48.6 | J118: 24.3 | K118: 54 | L118: 12.15 | M118: - | N118: 130 | O118: 40 | P118: 2400 | Q118: атт | R118: 0.49625 | S118: 540
A119: Имя 10ПЭГ+10% п/п на ПЭГ | B119: номер 100-1 | C119: 45.83090379 | D119: - | E119: - | F119: 6.997084548 | G119: - | H119: - | I119: 8.396501458 | J119: 10.7755102 | K119: 8 | L119: 1.8 | M119: - | N119: =0.2625*S119 -> 21 | O119: =0.1125*S119 -> 9 | P119: 400 | Q119: 48 | R119: 0.03527 | S119: 80
A120: Имя 10ПЭГ+10% п/п на ПЭГ | B120: номер 200-1 | C120: 91.66180758 | D120: - | E120: - | F120: 13.9941691 | G120: - | H120: - | I120: 16.79300292 | J120: 21.55102041 | K120: 16 | L120: 3.6 | M120: - | N120: 42 | O120: 18 | P120: 800 | Q120: 48 | R120: 0.0808 | S120: 160
A121: Имя 10ПЭГ+10% п/п на ПЭГ | B121: номер 600-1 | C121: 309.3586006 | D121: - | E121: - | F121: 47.2303207 | G121: - | H121: - | I121: 56.67638484 | J121: 72.73469388 | K121: 54 | L121: 12.15 | M121: - | N121: 130 | O121: 40 | P121: 2400 | Q121: атт | R121: 0.49625 | S121: 540
A122: Имя 1ПЭГ+10% пункт 5а | B122: номер 100-2 | C122: =C32/$S32*($S32-0.1*$S32) -> 35.802 | D122: 25.353 | E122: 10.854 | F122: 8.1 | G122: 0.486 | H122: 0.405 | I122: - | J122: - | K122: 9 | L122: =L32/$S32*($S32-0.1*$S32) -> 2.025 | M122: 0.023 | N122: =0.222*S122 -> 19.98 | O122: =0.083*S122 -> 7.47 | P122: 400 | Q122: 68 | R122: 0.07 | S122: 90
A123: Имя 1ПЭГ+10% пункт 5а | B123: номер 200-2 | C123: 71.604 | D123: 50.706 | E123: 21.708 | F123: 16.2 | G123: 0.972 | H123: 0.81 | I123: - | J123: - | K123: 18 | L123: 4.05 | M123: 0.045 | N123: =0.222*S123 -> 39.96 | O123: =0.083*S123 -> 14.94 | P123: 800 | Q123: 68 | R123: 0.131 | S123: 180
A124: Имя 1ПЭГ+10% пункт 5а | B124: номер 200-3 | C124: 71.604 | D124: 50.706 | E124: 21.708 | F124: 16.2 | G124: 0.972 | H124: 0.81 | I124: - | J124: - | K124: 18 | L124: 4.05 | M124: 0.045 | N124: =0.222*S124 -> 39.96 | O124: =0.083*S124 -> 14.94 | P124: 800 | Q124: 68 | R124: 0.06 | S124: 180
A125: Имя 2ПЭГ+10% пункт 5а | B125: номер 100-1 | C125: =C35/$S35*($S35-0.1*$S35) -> 46.08 | D125: - | E125: - | F125: =F35/$S35*($S35-0.1*$S35) -> 5.76 | G125: - | H125: - | I125: =I35/$S35*($S35-0.1*$S35) -> 20.16 | J125: - | K125: 8 | L125: 1.8 | M125: - | N125: =0.2625*S125 -> 21 | O125: =0.1125*S125 -> 9 | P125: 400 | Q125: 48 | R125: 0.03527 | S125: 80
A126: Имя 2ПЭГ+10% пункт 5а | B126: номер 200-1 | C126: 92.16 | D126: - | E126: - | F126: 11.52 | G126: - | H126: - | I126: 40.32 | J126: - | K126: 16 | L126: 3.6 | M126: - | N126: =0.2625*S126 -> 42 | O126: =0.1125*S126 -> 18 | P126: 800 | Q126: 48 | R126: 0.0808 | S126: 160
A127: Имя 2ПЭГ+10% пункт 5а | B127: номер 600-1 | C127: 311.04 | D127: - | E127: - | F127: 38.88 | G127: - | H127: - | I127: 136.08 | J127: - | K127: 54 | L127: 12.15 | M127: - | N127: 130 | O127: 40 | P127: 2400 | Q127: атт | R127: 0.49625 | S127: 540
A128: Имя 3ПЭГ+10% пункт 5а | B128: номер 100-1 | C128: 46.08 | D128: - | E128: - | F128: 4.32 | G128: - | H128: - | I128: 21.6 | J128: - | K128: 8 | L128: 1.8 | M128: - | N128: =0.2625*S128 -> 21 | O128: =0.1125*S128 -> 9 | P128: 400 | Q128: 36 | R128: 0.03527 | S128: 80
A129: Имя 3ПЭГ+10% пункт 5а | B129: номер 200-1 | C129: 92.16 | D129: - | E129: - | F129: 8.64 | G129: - | H129: - | I129: 43.2 | J129: - | K129: 16 | L129: 3.6 | M129: - | N129: 42 | O129: 18 | P129: 800 | Q129: 36 | R129: 0.0808 | S129: =SUM(C129:K129) -> 160
A130: Имя 3ПЭГ+10% пункт 5а | B130: номер 600-1 | C130: 311.04 | D130: - | E130: - | F130: 29.16 | G130: - | H130: - | I130: 145.8 | J130: - | K130: 54 | L130: 12.15 | M130: - | N130: 141.75 | O130: 60.75 | P130: 2400 | Q130: атт | R130: 0.49625 | S130: 540
A131: Имя 4ПЭГ+10% пункт 5а | B131: номер 100-1 | C131: 65.7 | D131: - | E131: - | F131: 4.284 | G131: - | H131: - | I131: 6.642 | J131: =J41/$S41*($S41-0.1*$S41) -> 4.374 | K131: 9 | L131: 2.025 | M131: - | N131: 23.625 | O131: 10.125 | P131: 400 | Q131: 48 | R131: 0.03527 | S131: 90
A132: Имя 4ПЭГ+10% пункт 5а | B132: номер 200-1 | C132: 131.4 | D132: - | E132: - | F132: 8.568 | G132: - | H132: - | I132: 13.284 | J132: 8.748 | K132: 18 | L132: 4.05 | M132: - | N132: 47.25 | O132: 20.25 | P132: 800 | Q132: 48 | R132: 0.0808 | S132: 180
A133: Имя 4ПЭГ+10% пункт 5а | B133: номер 600-1 | C133: 394.2 | D133: - | E133: - | F133: 25.704 | G133: - | H133: - | I133: 39.852 | J133: 26.244 | K133: 54 | L133: 12.15 | M133: - | N133: 130 | O133: 40 | P133: 2400 | Q133: 24 | R133: 0.49625 | S133: 540
A134: Имя 5ПЭГ+10% пункт 5а | B134: номер 100-1 | C134: 61.884 | D134: - | E134: - | F134: 4.86 | G134: - | H134: - | I134: 12.15 | J134: 2.106 | K134: 9 | L134: 2.025 | M134: - | N134: =0.2625*S134 -> 23.625 | O134: =0.1125*S134 -> 10.125 | P134: 400 | Q134: 60 | R134: 0.03527 | S134: 90
A135: Имя 5ПЭГ+10% пункт 5а | B135: номер 200-1 | C135: 123.768 | D135: - | E135: - | F135: 9.72 | G135: - | H135: - | I135: 24.3 | J135: 4.212 | K135: 18 | L135: 4.05 | M135: - | N135: 47.25 | O135: 20.25 | P135: 800 | Q135: 60 | R135: 0.0808 | S135: 180
A136: Имя 5ПЭГ+10% пункт 5а | B136: номер 600-1 | C136: 371.304 | D136: - | E136: - | F136: 29.16 | G136: - | H136: - | I136: 72.9 | J136: 12.636 | K136: 54 | L136: 12.15 | M136: - | N136: 130 | O136: 40 | P136: 2400 | Q136: 32 | R136: 0.49625 | S136: 540
A137: Имя 6ПЭГ+10% пункт 5а | B137: номер 100-1 | C137: 58.824 | D137: - | E137: - | F137: 4.68 | G137: - | H137: - | I137: 4.68 | J137: 3.816 | K137: 8 | L137: 1.8 | M137: - | N137: =0.2625*S137 -> 21 | O137: =0.1125*S137 -> 9 | P137: 400 | Q137: 36 | R137: 0.03527 | S137: 80
A138: Имя 6ПЭГ+10% пункт 5а | B138: номер 200-1 | C138: 117.648 | D138: - | E138: - | F138: 9.36 | G138: - | H138: - | I138: 9.36 | J138: 7.632 | K138: 16 | L138: 3.6 | M138: - | N138: 42 | O138: 18 | P138: 800 | Q138: 36 | R138: 0.0808 | S138: 160
A139: Имя 6ПЭГ+10% пункт 5а | B139: номер 600-1 | C139: 397.062 | D139: - | E139: - | F139: 31.59 | G139: - | H139: - | I139: 31.59 | J139: 25.758 | K139: 54 | L139: 12.15 | M139: - | N139: 130 | O139: 40 | P139: 2400 | Q139: атт | R139: 0.49625 | S139: 540
A140: Имя 7ПЭГ+10% пункт 5а | B140: номер 100-1 | C140: 53.568 | D140: - | E140: - | F140: 5.04 | G140: - | H140: - | I140: 9.576 | J140: 3.816 | K140: 8 | L140: 1.8 | M140: - | N140: =0.2625*S140 -> 21 | O140: =0.1125*S140 -> 9 | P140: 400 | Q140: 48 | R140: 0.03527 | S140: 80
A141: Имя 7ПЭГ+10% пункт 5а | B141: номер 200-1 | C141: 107.136 | D141: - | E141: - | F141: 10.08 | G141: - | H141: - | I141: 19.152 | J141: 7.632 | K141: 16 | L141: 3.6 | M141: - | N141: 42 | O141: 18 | P141: 800 | Q141: 48 | R141: 0.0808 | S141: 160
A142: Имя 7ПЭГ+10% пункт 5а | B142: номер 600-1 | C142: 361.584 | D142: - | E142: - | F142: 34.02 | G142: - | H142: - | I142: 64.638 | J142: 25.758 | K142: 54 | L142: 12.15 | M142: - | N142: 130 | O142: 40 | P142: 2400 | Q142: атт | R142: 0.49625 | S142: 540
A143: Имя 8ПЭГ+10% пункт 5а | B143: номер 100-1 | C143: 52.704 | D143: - | E143: - | F143: 7.92 | G143: - | H143: - | I143: 6.336 | J143: 5.04 | K143: 8 | L143: 1.8 | M143: - | N143: =0.2625*S143 -> 21 | O143: =0.1125*S143 -> 9 | P143: 400 | Q143: 64 | R143: 0.03527 | S143: 80
A144: Имя 8ПЭГ+10% пункт 5а | B144: номер 200-1 | C144: 105.408 | D144: - | E144: - | F144: 15.84 | G144: - | H144: - | I144: 12.672 | J144: 10.08 | K144: 16 | L144: 3.6 | M144: - | N144: 42 | O144: 18 | P144: 800 | Q144: 64 | R144: 0.0808 | S144: 160
A145: Имя 8ПЭГ+10% пункт 5а | B145: номер 600-1 | C145: 355.752 | D145: - | E145: - | F145: 53.46 | G145: - | H145: - | I145: 42.768 | J145: 34.02 | K145: 54 | L145: 12.15 | M145: - | N145: 130 | O145: 40 | P145: 2400 | Q145: атт | R145: 0.49625 | S145: 540
A146: Имя 9ПЭГ+10% пункт 5а | B146: номер 100-1 | C146: 53.28 | D146: - | E146: - | F146: 7.92 | G146: - | H146: - | I146: 7.2 | J146: 3.6 | K146: 8 | L146: 1.8 | M146: - | N146: =0.2625*S146 -> 21 | O146: =0.1125*S146 -> 9 | P146: 400 | Q146: 48 | R146: 0.03527 | S146: 80
A147: Имя 9ПЭГ+10% пункт 5а | B147: номер 200-1 | C147: 106.56 | D147: - | E147: - | F147: 15.84 | G147: - | H147: - | I147: 14.4 | J147: 7.2 | K147: 16 | L147: 3.6 | M147: - | N147: 42 | O147: 18 | P147: 800 | Q147: 48 | R147: 0.0808 | S147: 160
A148: Имя 9ПЭГ+10% пункт 5а | B148: номер 600-1 | C148: 359.64 | D148: - | E148: - | F148: 53.46 | G148: - | H148: - | I148: 48.6 | J148: 24.3 | K148: 54 | L148: 12.15 | M148: - | N148: 130 | O148: 40 | P148: 2400 | Q148: атт | R148: 0.49625 | S148: 540
A149: Имя 10ПЭГ+10% пункт 5а | B149: номер 100-1 | C149: 45.83090379 | D149: - | E149: - | F149: 6.997084548 | G149: - | H149: - | I149: 8.396501458 | J149: 10.7755102 | K149: 8 | L149: 1.8 | M149: - | N149: =0.2625*S149 -> 21 | O149: =0.1125*S149 -> 9 | P149: 400 | Q149: 48 | R149: 0.03527 | S149: 80
A150: Имя 10ПЭГ+10% пункт 5а | B150: номер 200-1 | C150: 91.66180758 | D150: - | E150: - | F150: 13.9941691 | G150: - | H150: - | I150: 16.79300292 | J150: 21.55102041 | K150: 16 | L150: 3.6 | M150: - | N150: 42 | O150: 18 | P150: 800 | Q150: 48 | R150: 0.0808 | S150: 160
A151: Имя 10ПЭГ+10% пункт 5а | B151: номер 600-1 | C151: 309.3586006 | D151: - | E151: - | F151: 47.2303207 | G151: - | H151: - | I151: 56.67638484 | J151: 72.73469388 | K151: 54 | L151: 12.15 | M151: - | N151: 130 | O151: 40 | P151: 2400 | Q151: атт | R151: 0.49625 | S151: 540
A154: Имя 1 | B154: пункт 18 | C154: пункт 18 72ч | D154: пункт 18 120ч | E154: пункт 2 | F154: пункт 3 | G154: пункт 1Пх | H154: Tiпункт 15 | I154: пункт 4 | J154: пункт 6 | K154: часть 1 | L154: часть 2 | M154: пункт 5 | N154: пункт 7
A155: Имя 2 | B155: пункт 18 | C155: пункт 18 72ч | D155: пункт 18 120ч | E155: пункт 2 | F155: пункт 3 | G155: пункт 1Пх | H155: Tiпункт 15 | I155: пункт 4 | J155: пункт 6 | K155: часть 1 | L155: часть 2 | M155: пункт 5 | N155: пункт 7
A156: Имя 3 | B156: пункт 18 | C156: пункт 18 72ч | D156: пункт 18 120ч | E156: пункт 2 | F156: пункт 3 | G156: пункт 1Пх | H156: Tiпункт 15 | I156: пункт 4 | J156: пункт 6 | K156: часть 1 | L156: часть 2 | M156: пункт 5 | N156: пункт 7
A157: Имя 4 | B157: пункт 13 | C157: пункт 18 72ч | D157: пункт 18 120ч | E157: пункт 2 | F157: пункт 3 | G157: пункт 1Пх | H157: Tiпункт 15 | I157: пункт 4 | J157: пункт 6 | K157: часть 1 | L157: часть 2 | M157: пункт 5 | N157: пункт 7
A158: Имя 5 | B158: пункт 18 | C158: пункт 18 72ч | D158: пункт 18 120ч | E158: пункт 2 | F158: пункт 3 | G158: пункт 1Пх | H158: Tiпункт 15 | I158: пункт 4 | J158: пункт 6 | K158: часть 1 | L158: часть 2 | M158: пункт 5 | N158: пункт 7
A159: Имя 6 | B159: пункт 18 | C159: пункт 18 72ч | D159: пункт 18 120ч | E159: пункт 2 | F159: пункт 3 | G159: пункт 1Пх | H159: Tiпункт 15 | I159: пункт 4 | J159: пункт 6 | K159: часть 1 | L159: часть 2 | M159: пункт 5 | N159: пункт 7
A160: Имя 7 | B160: пункт 18 | C160: пункт 18 72ч | D160: пункт 18 120ч | E160: пункт 2 | F160: пункт 3 | G160: пункт 1Пх | H160: Tiпункт 15 | I160: пункт 4 | J160: пункт 6 | K160: часть 1 | L160: часть 2 | M160: пункт 5 | N160: пункт 7
A161: Имя 8 | B161: пункт 18 | C161: пункт 18 72ч | D161: пункт 18 120ч | E161: пункт 2 | F161: пункт 3 | G161: пункт 1Пх | H161: Tiпункт 15 | I161: пункт 4 | J161: пункт 6 | K161: часть 1 | L161: часть 2 | M161: пункт 5 | N161: пункт 7
A162: Имя 9 | B162: пункт 18 | C162: пункт 18 72ч | D162: пункт 18 120ч | E162: пункт 2 | F162: пункт 3 | G162: пункт 1Пх | H162: Tiпункт 15 | I162: пункт 4 | J162: пункт 6 | K162: часть 1 | L162: часть 2 | M162: пункт 5 | N162: пункт 7
A163: Имя 10 | B163: пункт 18 | C163: пункт 18 72ч | D163: пункт 18 120ч | E163: пункт 2 | F163: пункт 3 | G163: пункт 1Пх | H163: Tiпункт 15 | I163: пункт 4 | J163: пункт 6 | K163: часть 1 | L163: часть 2 | M163: пункт 5 | N163: пункт 7
A164: Имя 1ПЭГ | B164: пункт 18 | C164: пункт 18 72ч | D164: пункт 18 120ч | E164: пункт 2 | F164: пункт 3 | G164: пункт 1Пх | H164: Tiпункт 15 | I164: пункт 4 | J164: пункт 6 | K164: часть 1 | L164: часть 2 | M164: пункт 5 | N164: пункт 7
A165: Имя 2ПЭГ | B165: пункт 18 | C165: пункт 18 72ч | D165: пункт 18 120ч | E165: пункт 2 | F165: пункт 3 | G165: пункт 1Пх | H165: Tiпункт 15 | I165: пункт 4 | J165: пункт 6 | K165: часть 1 | L165: часть 2 | M165: пункт 5 | N165: пункт 7
A166: Имя 3ПЭГ | B166: пункт 18 | C166: пункт 18 72ч | D166: пункт 18 120ч | E166: пункт 2 | F166: пункт 3 | G166: пункт 1Пх | H166: Tiпункт 15 | I166: пункт 4 | J166: пункт 6 | K166: часть 1 | L166: часть 2 | M166: пункт 5 | N166: пункт 7
A167: Имя 4ПЭГ | B167: пункт 13 | C167: пункт 18 72ч | D167: пункт 18 120ч | E167: пункт 2 | F167: пункт 3 | G167: пункт 1Пх | H167: Tiпункт 15 | I167: пункт 4 | J167: пункт 6 | K167: часть 1 | L167: часть 2 | M167: пункт 5 | N167: пункт 7
A168: Имя 5ПЭГ | B168: пункт 18 | C168: пункт 18 72ч | D168: пункт 18 120ч | E168: пункт 2 | F168: пункт 3 | G168: пункт 1Пх | H168: Tiпункт 15 | I168: пункт 4 | J168: пункт 6 | K168: часть 1 | L168: часть 2 | M168: пункт 5 | N168: пункт 7
A169: Имя 6ПЭГ | B169: пункт 18 | C169: пункт 18 72ч | D169: пункт 18 120ч | E169: пункт 2 | F169: пункт 3 | G169: пункт 1Пх | H169: Tiпункт 15 | I169: пункт 4 | J169: пункт 6 | K169: часть 1 | L169: часть 2 | M169: пункт 5 | N169: пункт 7
A170: Имя 7ПЭГ | B170: пункт 18 | C170: пункт 18 72ч | D170: пункт 18 120ч | E170: пункт 2 | F170: пункт 3 | G170: пункт 1Пх | H170: Tiпункт 15 | I170: пункт 4 | J170: пункт 6 | K170: часть 1 | L170: часть 2 | M170: пункт 5 | N170: пункт 7
A171: Имя 8ПЭГ | B171: пункт 18 | C171: пункт 18 72ч | D171: пункт 18 120ч | E171: пункт 2 | F171: пункт 3 | G171: пункт 1Пх | H171: Tiпункт 15 | I171: пункт 4 | J171: пункт 6 | K171: часть 1 | L171: часть 2 | M171: пункт 5 | N171: пункт 7
A172: Имя 9ПЭГ | B172: пункт 18 | C172: пункт 18 72ч | D172: пункт 18 120ч | E172: пункт 2 | F172: пункт 3 | G172: пункт 1Пх | H172: Tiпункт 15 | I172: пункт 4 | J172: пункт 6 | K172: часть 1 | L172: часть 2 | M172: пункт 5 | N172: пункт 7
A173: Имя 10ПЭГ | B173: пункт 18 | C173: пункт 18 72ч | D173: пункт 18 120ч | E173: пункт 2 | F173: пункт 3 | G173: пункт 1Пх | H173: Tiпункт 15 | I173: пункт 4 | J173: пункт 6 | K173: часть 1 | L173: часть 2 | M173: пункт 5 | N173: пункт 7
A174: Имя 1+10% пункт 5а | B174: пункт 18 | C174: пункт 18 72ч | D174: пункт 18 120ч | E174: пункт 2 | F174: пункт 3 | G174: пункт 1Пх | H174: Tiпункт 15 | I174: пункт 4 | J174: пункт 6 | K174: часть 1 | L174: часть 2 | M174: пункт 5 | N174: пункт 7
A175: Имя 2+10% пункт 5а | B175: пункт 18 | C175: пункт 18 72ч | D175: пункт 18 120ч | E175: пункт 2 | F175: пункт 3 | G175: пункт 1Пх | H175: Tiпункт 15 | I175: пункт 4 | J175: пункт 6 | K175: часть 1 | L175: часть 2 | M175: пункт 5 | N175: пункт 7
A176: Имя 3+10% пункт 5а | B176: пункт 18 | C176: пункт 18 72ч | D176: пункт 18 120ч | E176: пункт 2 | F176: пункт 3 | G176: пункт 1Пх | H176: Tiпункт 15 | I176: пункт 4 | J176: пункт 6 | K176: часть 1 | L176: часть 2 | M176: пункт 5 | N176: пункт 7
A177: Имя 4+10% пункт 5а | B177: пункт 13 | C177: пункт 18 72ч | D177: пункт 18 120ч | E177: пункт 2 | F177: пункт 3 | G177: пункт 1Пх | H177: Tiпункт 15 | I177: пункт 4 | J177: пункт 6 | K177: часть 1 | L177: часть 2 | M177: пункт 5 | N177: пункт 7
A178: Имя 5+10% пункт 5а | B178: пункт 18 | C178: пункт 18 72ч | D178: пункт 18 120ч | E178: пункт 2 | F178: пункт 3 | G178: пункт 1Пх | H178: Tiпункт 15 | I178: пункт 4 | J178: пункт 6 | K178: часть 1 | L178: часть 2 | M178: пункт 5 | N178: пункт 7
A179: Имя 6+10% пункт 5а | B179: пункт 18 | C179: пункт 18 72ч | D179: пункт 18 120ч | E179: пункт 2 | F179: пункт 3 | G179: пункт 1Пх | H179: Tiпункт 15 | I179: пункт 4 | J179: пункт 6 | K179: часть 1 | L179: часть 2 | M179: пункт 5 | N179: пункт 7
A180: Имя 7+10% пункт 5а | B180: пункт 18 | C180: пункт 18 72ч | D180: пункт 18 120ч | E180: пункт 2 | F180: пункт 3 | G180: пункт 1Пх | H180: Tiпункт 15 | I180: пункт 4 | J180: пункт 6 | K180: часть 1 | L180: часть 2 | M180: пункт 5 | N180: пункт 7
A181: Имя 8+10% пункт 5а | B181: пункт 18 | C181: пункт 18 72ч | D181: пункт 18 120ч | E181: пункт 2 | F181: пункт 3 | G181: пункт 1Пх | H181: Tiпункт 15 | I181: пункт 4 | J181: пункт 6 | K181: часть 1 | L181: часть 2 | M181: пункт 5 | N181: пункт 7
A182: Имя 9+10% пункт 5а | B182: пункт 18 | C182: пункт 18 72ч | D182: пункт 18 120ч | E182: пункт 2 | F182: пункт 3 | G182: пункт 1Пх | H182: Tiпункт 15 | I182: пункт 4 | J182: пункт 6 | K182: часть 1 | L182: часть 2 | M182: пункт 5 | N182: пункт 7
A183: Имя 10+10% пункт 5а | B183: пункт 18 | C183: пункт 18 72ч | D183: пункт 18 120ч | E183: пункт 2 | F183: пункт 3 | G183: пункт 1Пх | H183: Tiпункт 15 | I183: пункт 4 | J183: пункт 6 | K183: часть 1 | L183: часть 2 | M183: пункт 5 | N183: пункт 7
A184: Имя 1ПЭГ+10% п/п на ПЭГ | B184: пункт 18 | C184: пункт 18 72ч | D184: пункт 18 120ч | E184: пункт 2 | F184: пункт 3 | G184: пункт 1Пх | H184: Tiпункт 15 | I184: пункт 4 | J184: пункт 6 | K184: часть 1 | L184: часть 2 | M184: часть 3 | N184: пункт 7
A185: Имя 2ПЭГ+10% п/п на ПЭГ | B185: пункт 18 | C185: пункт 18 72ч | D185: пункт 18 120ч | E185: пункт 2 | F185: пункт 3 | G185: пункт 1Пх | H185: Tiпункт 15 | I185: пункт 4 | J185: пункт 6 | K185: часть 1 | L185: часть 2 | M185: часть 3 | N185: пункт 7
A186: Имя 3ПЭГ+10% п/п на ПЭГ | B186: пункт 18 | C186: пункт 18 72ч | D186: пункт 18 120ч | E186: пункт 2 | F186: пункт 3 | G186: пункт 1Пх | H186: Tiпункт 15 | I186: пункт 4 | J186: пункт 6 | K186: часть 1 | L186: часть 2 | M186: часть 3 | N186: пункт 7
A187: Имя 4ПЭГ+10% п/п на ПЭГ | B187: пункт 13 | C187: пункт 18 72ч | D187: пункт 18 120ч | E187: пункт 2 | F187: пункт 3 | G187: пункт 1Пх | H187: Tiпункт 15 | I187: пункт 4 | J187: пункт 6 | K187: часть 1 | L187: часть 2 | M187: часть 3 | N187: пункт 7
A188: Имя 5ПЭГ+10% п/п на ПЭГ | B188: пункт 18 | C188: пункт 18 72ч | D188: пункт 18 120ч | E188: пункт 2 | F188: пункт 3 | G188: пункт 1Пх | H188: Tiпункт 15 | I188: пункт 4 | J188: пункт 6 | K188: часть 1 | L188: часть 2 | M188: часть 3 | N188: пункт 7
A189: Имя 6ПЭГ+10% п/п на ПЭГ | B189: пункт 18 | C189: пункт 18 72ч | D189: пункт 18 120ч | E189: пункт 2 | F189: пункт 3 | G189: пункт 1Пх | H189: Tiпункт 15 | I189: пункт 4 | J189: пункт 6 | K189: часть 1 | L189: часть 2 | M189: часть 3 | N189: пункт 7
A190: Имя 7ПЭГ+10% п/п на ПЭГ | B190: пункт 18 | C190: пункт 18 72ч | D190: пункт 18 120ч | E190: пункт 2 | F190: пункт 3 | G190: пункт 1Пх | H190: Tiпункт 15 | I190: пункт 4 | J190: пункт 6 | K190: часть 1 | L190: часть 2 | M190: часть 3 | N190: пункт 7
A191: Имя 8ПЭГ+10% п/п на ПЭГ | B191: пункт 18 | C191: пункт 18 72ч | D191: пункт 18 120ч | E191: пункт 2 | F191: пункт 3 | G191: пункт 1Пх | H191: Tiпункт 15 | I191: пункт 4 | J191: пункт 6 | K191: часть 1 | L191: часть 2 | M191: часть 3 | N191: пункт 7
A192: Имя 9ПЭГ+10% п/п на ПЭГ | B192: пункт 18 | C192: пункт 18 72ч | D192: пункт 18 120ч | E192: пункт 2 | F192: пункт 3 | G192: пункт 1Пх | H192: Tiпункт 15 | I192: пункт 4 | J192: пункт 6 | K192: часть 1 | L192: часть 2 | M192: часть 3 | N192: пункт 7
A193: Имя 10ПЭГ+10% п/п на ПЭГ | B193: пункт 18 | C193: пункт 18 72ч | D193: пункт 18 120ч | E193: пункт 2 | F193: пункт 3 | G193: пункт 1Пх | H193: Tiпункт 15 | I193: пункт 4 | J193: пункт 6 | K193: часть 1 | L193: часть 2 | M193: часть 3 | N193: пункт 7
A194: Имя 1ПЭГ+10% пункт 5а | B194: пункт 18 | C194: пункт 18 72ч | D194: пункт 18 120ч | E194: пункт 2 | F194: пункт 3 | G194: пункт 1Пх | H194: Tiпункт 15 | I194: пункт 4 | J194: пункт 6 | K194: часть 1 | L194: часть 2 | M194: пункт 5 | N194: пункт 7
A195: Имя 2ПЭГ+10% пункт 5а | B195: пункт 18 | C195: пункт 18 72ч | D195: пункт 18 120ч | E195: пункт 2 | F195: пункт 3 | G195: пункт 1Пх | H195: Tiпункт 15 | I195: пункт 4 | J195: пункт 6 | K195: часть 1 | L195: часть 2 | M195: пункт 5 | N195: пункт 7
A196: Имя 3ПЭГ+10% пункт 5а | B196: пункт 18 | C196: пункт 18 72ч | D196: пункт 18 120ч | E196: пункт 2 | F196: пункт 3 | G196: пункт 1Пх | H196: Tiпункт 15 | I196: пункт 4 | J196: пункт 6 | K196: часть 1 | L196: часть 2 | M196: пункт 5 | N196: пункт 7
A197: Имя 4ПЭГ+10% пункт 5а | B197: пункт 13 | C197: пункт 18 72ч | D197: пункт 18 120ч | E197: пункт 2 | F197: пункт 3 | G197: пункт 1Пх | H197: Tiпункт 15 | I197: пункт 4 | J197: пункт 6 | K197: часть 1 | L197: часть 2 | M197: пункт 5 | N197: пункт 7
A198: Имя 5ПЭГ+10% пункт 5а | B198: пункт 18 | C198: пункт 18 72ч | D198: пункт 18 120ч | E198: пункт 2 | F198: пункт 3 | G198: пункт 1Пх | H198: Tiпункт 15 | I198: пункт 4 | J198: пункт 6 | K198: часть 1 | L198: часть 2 | M198: пункт 5 | N198: пункт 7
A199: Имя 6ПЭГ+10% пункт 5а | B199: пункт 18 | C199: пункт 18 72ч | D199: пункт 18 120ч | E199: пункт 2 | F199: пункт 3 | G199: пункт 1Пх | H199: Tiпункт 15 | I199: пункт 4 | J199: пункт 6 | K199: часть 1 | L199: часть 2 | M199: пункт 5 | N199: пункт 7
A200: Имя 7ПЭГ+10% пункт 5а | B200: пункт 18 | C200: пункт 18 72ч | D200: пункт 18 120ч | E200: пункт 2 | F200: пункт 3 | G200: пункт 1Пх | H200: Tiпункт 15 | I200: пункт 4 | J200: пункт 6 | K200: часть 1 | L200: часть 2 | M200: пункт 5 | N200: пункт 7
A201: Имя 8ПЭГ+10% пункт 5а | B201: пункт 18 | C201: пункт 18 72ч | D201: пункт 18 120ч | E201: пункт 2 | F201: пункт 3 | G201: пункт 1Пх | H201: Tiпункт 15 | I201: пункт 4 | J201: пункт 6 | K201: часть 1 | L201: часть 2 | M201: пункт 5 | N201: пункт 7
A202: Имя 9ПЭГ+10% пункт 5а | B202: пункт 18 | C202: пункт 18 72ч | D202: пункт 18 120ч | E202: пункт 2 | F202: пункт 3 | G202: пункт 1Пх | H202: Tiпункт 15 | I202: пункт 4 | J202: пункт 6 | K202: часть 1 | L202: часть 2 | M202: пункт 5 | N202: пункт 7
... 52 more rows

Sheet Скелет
A1: 8 | B1: 1 | C1: - | E1: 4 | F1: 1 | G1: - | I1: 2 | J1: 1 | K1: -
A2: 1 | B2: 2 | C2: 1 | E2: 1 | F2: 2 | G2: номер 100-1 | J2: 2 | K2: Петя
A3: 1 | B3: 3 | C3: 2 | E3: 1 | F3: 3 | G3: номер 200-1 | J3: 3 | K3: Вася
A4: 1 | B4: 4 | C4: 3 | E4: 1 | F4: 4 | G4: номер 100-2 | J4: 4 | K4: Дима
B5: 5 | C5: 4 | F5: 5 | G5: номер 200-2 | J5: 5 | K5: Леха
B6: 6 | C6: 5 | F6: 6 | G6: номер 200-3 | J6: 6 | K6: Макс
B7: 7 | C7: 6 | F7: 7 | G7: номер 600-1 | J7: 7 | K7: Витя
B8: 8 | C8: 7 | J8: 8 | K8: Андрюха
B9: 9 | C9: 8 | J9: 9 | K9: Рыба
B10: 10 | C10: 9 | J10: 10 | K10: Чук
B11: 11 | C11: 10
B12: 12 | C12: 11
B13: 13 | C13: 12
B14: 14 | C14: 13
B15: 15 | C15: 14
B16: 16 | C16: 15
B17: 17 | C17: 16
B18: 18 | C18: 17
B19: 19 | C19: 18
B20: 20 | C20: 19
B21: 21 | C21: 20
B22: 22 | C22: 21
B23: 23 | C23: 22
B24: 24 | C24: 23
B25: 25 | C25: 24
B26: 26 | C26: 25
B27: 27 | C27: 26
B28: 28 | C28: 27
B29: 29 | C29: 28
B30: 30 | C30: 29
B31: 31 | C31: 30
B32: 32 | C32: 31
B33: 33 | C33: 32
B34: 34 | C34: 33
B35: 35 | C35: 34
B36: 36 | C36: 35
B37: 37 | C37: 36
B38: 38 | C38: 37
B39: 39 | C39: 38
B40: 40 | C40: 39
B41: 41 | C41: 40
B42: 42 | C42: 41
B43: 43 | C43: 42
B44: 44 | C44: 43
B45: 45 | C45: 44
B46: 46 | C46: 45
B47: 47 | C47: 46
B48: 48 | C48: 47
B49: 49 | C49: 48
B50: 50 | C50: 49
B51: 51 | C51: 50
